Workbook

Sheet Topics
A1: Topics | B1: Video #
A2: Ribbons and QAT | B2: 5
A3: Keyboard Shortcuts | B3: 6
A4: What does excel do: 1) Calculations and 2) Data Analysis | B4: 7
A5: Data In Excel and Default Alignment | B5: 8
A6: Keeping Data in Excel: Proper Data Set or Excel Table | B6: 9

Sheet RibbonQAT
A1: Office 2013 Video #23: Excel 2013 Basics 05
A2: Ribbon and QAT
A4: Name | B4: Quiz 01 | C4: Quiz 02 | D4: Quiz 03 | E4: Test 1 | F4: Test 2 | G4: Test 3 | H4: Total | I4: % Grade
A5: Max | B5: 20 | C5: 20 | D5: 20 | E5: 100 | F5: 100 | G5: 100 | H5: =SUM(B5:G5) -> 360 | I5: =H5/H5 -> 1
A6: Sioux | B6: 15 | C6: 9 | D6: 15 | E6: 87 | F6: 59 | G6: 98 | H6: =SUM(B6:G6) -> 283 | I6: =H6/$H$5 -> 0.7861111111
A7: Phil | B7: 16 | C7: 8 | D7: 14 | E7: 92 | F7: 68 | G7: 92 | H7: =SUM(B7:G7) -> 290 | I7: 0.8055555556
A8: Tom | B8: 12 | C8: 15 | D8: 18 | E8: 78 | F8: 67 | G8: 97 | H8: 287 | I8: 0.7972222222
A9: Chin | B9: 16 | C9: 16 | D9: 19 | E9: 65 | F9: 72 | G9: 88 | H9: 276 | I9: 0.7666666667
A10: Shelia | B10: 11 | C10: 13 | D10: 18 | E10: 74 | F10: 81 | G10: 87 | H10: 284 | I10: 0.7888888889
A11: Mo | B11: 18 | C11: 19 | D11: 19 | E11: 89 | F11: 79 | G11: 75 | H11: 299 | I11: 0.8305555556
A12: Gigi | B12: 20 | C12: 8 | D12: 15 | E12: 92 | F12: 75 | G12: 92 | H12: =SUM(B12:G12) -> 302 | I12: =H12/$H$5 -> 0.8388888889
A13: Average | B13: =AVERAGE(B6:B12) -> 15.42857143 | C13: =AVERAGE(C6:C12) -> 12.57142857 | D13: =AVERAGE(D6:D12) -> 16.85714286 | E13: 82.42857143 | F13: 71.57142857 | G13: =AVERAGE(G6:G12) -> 89.85714286 | H13: =AVERAGE(H6:H12) -> 288.7142857 | I13: 0.801984127
I16: =GEOMEAN(1+I6:I12)-1 -> 0.8018304725 | J16: Geometric Mean

Sheet Keyboards
A1: Office 2013 Video #24: Excel 2013 Basics 06:
A2: Keyboard Shortcuts Are Fast! My Favorite 10 Excel Keyboards
A4: Reminder:
A5: Ctrl Selection trick | C5: Ctrl + C means you hold keys simultaneously
A6: Shift Selection trick | C6: Alt, P, S, P means you hit keys in succession
A8: 10 Favorites:
A9: Ctrl + Arrow Key ==>> Jump to end. If all empty, jump to last empty
A10: Ctrl + Home ==>> Go To A1
A11: Ctrl + Shift + Arrow Key ==>> Select column or row (go until it sees an empty cell). Works in cells, formulas, dialog boxes.
A12: Alt, 1 ==>> get first command in QAT
A13: Ctrl + * ==>> Select Current Region (go in all directions until it sees an empty cells)
A14: Alt + = ==>> SUM function
A15: Shift + Enter ==>> Puts "Thing" in cell and moves selected cell up (above cell with formula)..
A16: F4 = puts dollar signs in cell references. And it jumps screen back in view.
A17: Alt, N, V ==>> PivotTable dialog box
A18: Alt, P, S, P ==>> Page Setup
A20: Date | B20: Region | C20: SalesRep | D20: Sales | F20: Total
A21: 2013-10-21 | B21: West | C21: Tyrone | D21: 519
A22: 2013-10-25 | B22: West | C22: Tyrone | D22: 651
A23: 2013-10-26 | B23: West | C23: Tyrone | D23: 618 | F23: Date | G23: Total
A24: 2013-10-23 | B24: Northwest | C24: Chin | D24: 335 | F24: 2013-10-20
A25: 2013-10-20 | B25: Northwest | C25: Tyrone | D25: 640 | F25: 2013-10-21
A26: 2013-10-23 | B26: Southwest | C26: Tyrone | D26: 586 | F26: 2013-10-22
A27: 2013-10-21 | B27: West | C27: Gigi | D27: 301 | F27: 2013-10-23
A28: 2013-10-25 | B28: Southwest | C28: Chin | D28: 359 | F28: 2013-10-24
A29: 2013-10-20 | B29: West | C29: Chin | D29: 658 | F29: 2013-10-25
A30: 2013-10-21 | B30: Southwest | C30: Tyrone | D30: 213
A31: 2013-10-25 | B31: Southwest | C31: Chin | D31: 500
A32: 2013-10-22 | B32: Northwest | C32: Tyrone | D32: 604
A33: 2013-10-23 | B33: West | C33: Tyrone | D33: 340
A34: 2013-10-21 | B34: Northwest | C34: Chin | D34: 117
A35: 2013-10-25 | B35: Southwest | C35: Gigi | D35: 234
A36: 2013-10-20 | B36: West | C36: Gigi | D36: 225
A37: 2013-10-25 | B37: Southwest | C37: Tyrone | D37: 302
A38: 2013-10-24 | B38: Northwest | C38: Tyrone | D38: 223
A39: 2013-10-22 | B39: West | C39: Chin | D39: 401
A40: 2013-10-24 | B40: West | C40: Chin | D40: 405
A41: 2013-10-21 | B41: Northwest | C41: Tyrone | D41: 493
A42: 2013-10-21 | B42: Southwest | C42: Tyrone | D42: 214
A43: 2013-10-22 | B43: Southwest | C43: Tyrone | D43: 366
A44: 2013-10-22 | B44: Northwest | C44: Tyrone | D44: 191
A45: 2013-10-25 | B45: West | C45: Tyrone | D45: 628
A46: 2013-10-26 | B46: West | C46: Gigi | D46: 144
A47: 2013-10-26 | B47: Southwest | C47: Tyrone | D47: 335
A48: 2013-10-22 | B48: Southwest | C48: Chin | D48: 571
A49: 2013-10-25 | B49: Southwest | C49: Chin | D49: 136
A50: 2013-10-25 | B50: Northwest | C50: Gigi | D50: 201
A51: 2013-10-23 | B51: Northwest | C51: Chin | D51: 339
A52: 2013-10-25 | B52: Northwest | C52: Tyrone | D52: 203
A53: 2013-10-21 | B53: West | C53: Gigi | D53: 526
A54: 2013-10-25 | B54: West | C54: Chin | D54: 86
A55: 2013-10-24 | B55: Southwest | C55: Tyrone | D55: 388
A56: 2013-10-25 | B56: Northwest | C56: Chin | D56: 119
A57: 2013-10-21 | B57: West | C57: Gigi | D57: 296
A58: 2013-10-21 | B58: Northwest | C58: Chin | D58: 295
A59: 2013-10-21 | B59: Northwest | C59: Gigi | D59: 120
A60: 2013-10-21 | B60: West | C60: Gigi | D60: 647
A61: 2013-10-22 | B61: Northwest | C61: Tyrone | D61: 159
A62: 2013-10-23 | B62: Northwest | C62: Chin | D62: 217
A63: 2013-10-24 | B63: Southwest | C63: Tyrone | D63: 362
A64: 2013-10-26 | B64: Southwest | C64: Gigi | D64: 599
A65: 2013-10-25 | B65: West | C65: Tyrone | D65: 546
A66: 2013-10-25 | B66: Northwest | C66: Gigi | D66: 254
A67: 2013-10-20 | B67: West | C67: Tyrone | D67: 101
A68: 2013-10-26 | B68: Southwest | C68: Chin | D68: 150
A69: 2013-10-25 | B69: Southwest | C69: Gigi | D69: 204
A70: 2013-10-24 | B70: Southwest | C70: Tyrone | D70: 106
A71: 2013-10-21 | B71: West | C71: Tyrone | D71: 333
A72: 2013-10-24 | B72: Northwest | C72: Gigi | D72: 67
A73: 2013-10-20 | B73: Northwest | C73: Gigi | D73: 51
A74: 2013-10-21 | B74: Southwest | C74: Gigi | D74: 279
A75: 2013-10-24 | B75: Southwest | C75: Tyrone | D75: 123
A76: 2013-10-21 | B76: West | C76: Chin | D76: 519
A77: 2013-10-22 | B77: Northwest | C77: Chin | D77: 501
A78: 2013-10-26 | B78: West | C78: Gigi | D78: 235
A79: 2013-10-23 | B79: Southwest | C79: Tyrone | D79: 35
A80: 2013-10-23 | B80: West | C80: Gigi | D80: 319
A81: 2013-10-24 | B81: Northwest | C81: Chin | D81: 551
A82: 2013-10-26 | B82: Southwest | C82: Chin | D82: 188
A83: 2013-10-25 | B83: West | C83: Tyrone | D83: 129
A84: 2013-10-20 | B84: West | C84: Gigi | D84: 339
A85: 2013-10-21 | B85: Southwest | C85: Chin | D85: 485
A86: 2013-10-20 | B86: West | C86: Tyrone | D86: 29
A87: 2013-10-20 | B87: Southwest | C87: Tyrone | D87: 135
A88: 2013-10-26 | B88: Southwest | C88: Tyrone | D88: 584
A89: 2013-10-23 | B89: Northwest | C89: Tyrone | D89: 684
A90: 2013-10-23 | B90: West | C90: Gigi | D90: 528
A91: 2013-10-26 | B91: Southwest | C91: Tyrone | D91: 675
A92: 2013-10-23 | B92: West | C92: Gigi | D92: 119
A93: 2013-10-22 | B93: West | C93: Gigi | D93: 368
A94: 2013-10-24 | B94: Southwest | C94: Gigi | D94: 524
A95: 2013-10-24 | B95: Southwest | C95: Gigi | D95: 329
A96: 2013-10-26 | B96: West | C96: Gigi | D96: 146
A97: 2013-10-26 | B97: Northwest | C97: Tyrone | D97: 350
A98: 2013-10-23 | B98: Southwest | C98: Chin | D98: 387
A99: 2013-10-20 | B99: Southwest | C99: Gigi | D99: 244
A100: 2013-10-23 | B100: Southwest | C100: Gigi | D100: 388
A101: 2013-10-20 | B101: Southwest | C101: Tyrone | D101: 449
A102: 2013-10-22 | B102: West | C102: Tyrone | D102: 477
A103: 2013-10-23 | B103: Southwest | C103: Chin | D103: 457
A104: 2013-10-26 | B104: Southwest | C104: Tyrone | D104: 105
A105: 2013-10-22 | B105: West | C105: Tyrone | D105: 458
A106: 2013-10-26 | B106: Northwest | C106: Chin | D106: 110
A107: 2013-10-21 | B107: West | C107: Tyrone | D107: 32
A108: 2013-10-24 | B108: West | C108: Chin | D108: 681
A109: 2013-10-23 | B109: Northwest | C109: Gigi | D109: 320
A110: 2013-10-25 | B110: Northwest | C110: Chin | D110: 601
A111: 2013-10-25 | B111: Southwest | C111: Gigi | D111: 101
A112: 2013-10-23 | B112: Northwest | C112: Gigi | D112: 172
A113: 2013-10-20 | B113: West | C113: Chin | D113: 197
A114: 2013-10-22 | B114: West | C114: Chin | D114: 346
A115: 2013-10-26 | B115: West | C115: Chin | D115: 318
A116: 2013-10-21 | B116: West | C116: Gigi | D116: 245
A117: 2013-10-25 | B117: Southwest | C117: Chin | D117: 498
A118: 2013-10-26 | B118: Southwest | C118: Tyrone | D118: 272
A119: 2013-10-21 | B119: Southwest | C119: Chin | D119: 424
A120: 2013-10-26 | B120: Northwest | C120: Chin | D120: 122
A121: 2013-10-23 | B121: Southwest | C121: Tyrone | D121: 39
A122: 2013-10-21 | B122: Southwest | C122: Gigi | D122: 400
A123: 2013-10-26 | B123: West | C123: Chin | D123: 416
A124: 2013-10-20 | B124: Southwest | C124: Tyrone | D124: 397
A125: 2013-10-25 | B125: Northwest | C125: Gigi | D125: 671
A126: 2013-10-25 | B126: Southwest | C126: Gigi | D126: 148
A127: 2013-10-21 | B127: Northwest | C127: Tyrone | D127: 115
A128: 2013-10-25 | B128: Northwest | C128: Tyrone | D128: 639
A129: 2013-10-24 | B129: Southwest | C129: Tyrone | D129: 659
A130: 2013-10-22 | B130: West | C130: Tyrone | D130: 36
A131: 2013-10-21 | B131: Northwest | C131: Tyrone | D131: 102
A132: 2013-10-22 | B132: West | C132: Chin | D132: 413
A133: 2013-10-25 | B133: West | C133: Chin | D133: 166
A134: 2013-10-22 | B134: West | C134: Chin | D134: 97
A135: 2013-10-26 | B135: West | C135: Tyrone | D135: 127
A136: 2013-10-20 | B136: Northwest | C136: Gigi | D136: 60
A137: 2013-10-22 | B137: Southwest | C137: Gigi | D137: 496
A138: 2013-10-23 | B138: Northwest | C138: Gigi | D138: 204
A139: 2013-10-26 | B139: Northwest | C139: Gigi | D139: 489
A140: 2013-10-20 | B140: West | C140: Tyrone | D140: 266
A141: 2013-10-20 | B141: Northwest | C141: Chin | D141: 364
A142: 2013-10-20 | B142: Northwest | C142: Chin | D142: 579
A143: 2013-10-21 | B143: West | C143: Gigi | D143: 587
A144: 2013-10-26 | B144: West | C144: Gigi | D144: 543
A145: 2013-10-22 | B145: Northwest | C145: Chin | D145: 644
A146: 2013-10-20 | B146: West | C146: Gigi | D146: 564
A147: 2013-10-22 | B147: Southwest | C147: Gigi | D147: 149
A148: 2013-10-23 | B148: Southwest | C148: Chin | D148: 201
A149: 2013-10-25 | B149: West | C149: Chin | D149: 51
A150: 2013-10-23 | B150: West | C150: Tyrone | D150: 195
A151: 2013-10-26 | B151: Northwest | C151: Chin | D151: 660
A152: 2013-10-21 | B152: Northwest | C152: Gigi | D152: 523
A153: 2013-10-23 | B153: West | C153: Tyrone | D153: 649
A154: 2013-10-25 | B154: Southwest | C154: Tyrone | D154: 409
A155: 2013-10-20 | B155: Northwest | C155: Tyrone | D155: 556
A156: 2013-10-22 | B156: Northwest | C156: Chin | D156: 565
A157: 2013-10-20 | B157: Southwest | C157: Tyrone | D157: 357
A158: 2013-10-25 | B158: West | C158: Gigi | D158: 219
A159: 2013-10-25 | B159: Northwest | C159: Gigi | D159: 327
A160: 2013-10-20 | B160: Southwest | C160: Chin | D160: 666
A161: 2013-10-20 | B161: Northwest | C161: Tyrone | D161: 290
A162: 2013-10-24 | B162: Northwest | C162: Tyrone | D162: 64
A163: 2013-10-24 | B163: West | C163: Chin | D163: 373
A164: 2013-10-26 | B164: Northwest | C164: Gigi | D164: 249
A165: 2013-10-20 | B165: Northwest | C165: Tyrone | D165: 237
A166: 2013-10-22 | B166: West | C166: Chin | D166: 138
A167: 2013-10-26 | B167: West | C167: Chin | D167: 324
A168: 2013-10-22 | B168: Southwest | C168: Gigi | D168: 633
A169: 2013-10-26 | B169: Southwest | C169: Gigi | D169: 240
A170: 2013-10-20 | B170: Southwest | C170: Tyrone | D170: 615
A171: 2013-10-22 | B171: Southwest | C171: Tyrone | D171: 180
A172: 2013-10-25 | B172: West | C172: Chin | D172: 415
A173: 2013-10-22 | B173: West | C173: Tyrone | D173: 305
A174: 2013-10-25 | B174: Northwest | C174: Chin | D174: 657
A175: 2013-10-23 | B175: West | C175: Gigi | D175: 474
A176: 2013-10-22 | B176: West | C176: Gigi | D176: 611
A177: 2013-10-21 | B177: West | C177: Chin | D177: 682
A178: 2013-10-24 | B178: Northwest | C178: Chin | D178: 398
A179: 2013-10-23 | B179: Northwest | C179: Tyrone | D179: 74
A180: 2013-10-24 | B180: West | C180: Gigi | D180: 243
A181: 2013-10-25 | B181: West | C181: Chin | D181: 151
A182: 2013-10-25 | B182: Northwest | C182: Chin | D182: 174
A183: 2013-10-24 | B183: Northwest | C183: Chin | D183: 304
A184: 2013-10-20 | B184: West | C184: Tyrone | D184: 457
A185: 2013-10-20 | B185: Southwest | C185: Chin | D185: 315
A186: 2013-10-23 | B186: Northwest | C186: Tyrone | D186: 295
A187: 2013-10-22 | B187: Northwest | C187: Tyrone | D187: 534
A188: 2013-10-23 | B188: West | C188: Chin | D188: 598
A189: 2013-10-24 | B189: Southwest | C189: Gigi | D189: 14
A190: 2013-10-22 | B190: Southwest | C190: Chin | D190: 26
A191: 2013-10-23 | B191: West | C191: Gigi | D191: 108
A192: 2013-10-22 | B192: West | C192: Tyrone | D192: 114
A193: 2013-10-26 | B193: Northwest | C193: Chin | D193: 684
A194: 2013-10-25 | B194: West | C194: Gigi | D194: 258
A195: 2013-10-21 | B195: Northwest | C195: Tyrone | D195: 439
A196: 2013-10-26 | B196: Northwest | C196: Tyrone | D196: 583
A197: 2013-10-25 | B197: West | C197: Tyrone | D197: 664
A198: 2013-10-24 | B198: West | C198: Tyrone | D198: 339
A199: 2013-10-24 | B199: Northwest | C199: Chin | D199: 164
A200: 2013-10-22 | B200: Southwest | C200: Tyrone | D200: 671
A201: 2013-10-23 | B201: Southwest | C201: Gigi | D201: 241
A202: 2013-10-24 | B202: West | C202: Chin | D202: 257
A203: 2013-10-23 | B203: Northwest | C203: Chin | D203: 264
... 399 more rows

Sheet Keyboards (an)
A1: Office 2013 Video #24: Excel 2013 Basics 06:
A2: Keyboard Shortcuts Are Fast! My Favorite 10 Excel Keyboards
A4: Reminder:
A5: Ctrl Selection trick | C5: Ctrl + C means you hold keys simultaneously
A6: Shift Selection trick | C6: Alt, P, S, P means you hit keys in succession
A8: 10 Favorites:
A9: Ctrl + Arrow Key ==>> Jump to end. If all empty, jump to last empty
A10: Ctrl + Home ==>> Go To A1
A11: Ctrl + Shift + Arrow Key ==>> Select column or row (go until it sees an empty cell). Works in cells, formulas, dialog boxes.
A12: Alt, 1 ==>> get first command in QAT
A13: Ctrl + * ==>> Select Current Region (go in all directions until it sees an empty cells)
A14: Alt + = ==>> SUM function
A15: Shift + Enter ==>> Puts "Thing" in cell and moves selected cell up (above cell with formula)..
A16: F4 = puts dollar signs in cell references. And it jumps screen back in view.
A17: Alt, N, V ==>> PivotTable dialog box
A18: Alt, P, S, P ==>> Page Setup
A20: Date | B20: Region | C20: SalesRep | D20: Sales | F20: Total
A21: 2013-10-21 | B21: West | C21: Tyrone | D21: 519 | F21: =SUM(D21:D602) -> 203018
A22: 2013-10-25 | B22: West | C22: Tyrone | D22: 651
A23: 2013-10-26 | B23: West | C23: Tyrone | D23: 618 | F23: Date | G23: Total
A24: 2013-10-23 | B24: Northwest | C24: Chin | D24: 335 | F24: 2013-10-20 | G24: =SUMIFS($D$21:$D$602,$A$21:$A$602,F24) -> 24791
A25: 2013-10-20 | B25: Northwest | C25: Tyrone | D25: 640 | F25: 2013-10-21 | G25: =SUMIFS($D$21:$D$602,$A$21:$A$602,F25) -> 33868
A26: 2013-10-23 | B26: Southwest | C26: Tyrone | D26: 586 | F26: 2013-10-22 | G26: 34850
A27: 2013-10-21 | B27: West | C27: Gigi | D27: 301 | F27: 2013-10-23 | G27: 28873
A28: 2013-10-25 | B28: Southwest | C28: Chin | D28: 359 | F28: 2013-10-24 | G28: 20820
A29: 2013-10-20 | B29: West | C29: Chin | D29: 658 | F29: 2013-10-25 | G29: 28782
A30: 2013-10-21 | B30: Southwest | C30: Tyrone | D30: 213
A31: 2013-10-25 | B31: Southwest | C31: Chin | D31: 500
A32: 2013-10-22 | B32: Northwest | C32: Tyrone | D32: 604 | F32: Row Labels | G32: Sum of Sales
A33: 2013-10-23 | B33: West | C33: Tyrone | D33: 340 | F33: 2013-10-20 | G33: 24791
A34: 2013-10-21 | B34: Northwest | C34: Chin | D34: 117 | F34: 2013-10-21 | G34: 33868
A35: 2013-10-25 | B35: Southwest | C35: Gigi | D35: 234 | F35: 2013-10-22 | G35: 34850
A36: 2013-10-20 | B36: West | C36: Gigi | D36: 225 | F36: 2013-10-23 | G36: 28873
A37: 2013-10-25 | B37: Southwest | C37: Tyrone | D37: 302 | F37: 2013-10-24 | G37: 20820
A38: 2013-10-24 | B38: Northwest | C38: Tyrone | D38: 223 | F38: 2013-10-25 | G38: 28782
A39: 2013-10-22 | B39: West | C39: Chin | D39: 401 | F39: 2013-10-26 | G39: 31034
A40: 2013-10-24 | B40: West | C40: Chin | D40: 405 | F40: Grand Total | G40: 203018
A41: 2013-10-21 | B41: Northwest | C41: Tyrone | D41: 493
A42: 2013-10-21 | B42: Southwest | C42: Tyrone | D42: 214
A43: 2013-10-22 | B43: Southwest | C43: Tyrone | D43: 366
A44: 2013-10-22 | B44: Northwest | C44: Tyrone | D44: 191
A45: 2013-10-25 | B45: West | C45: Tyrone | D45: 628
A46: 2013-10-26 | B46: West | C46: Gigi | D46: 144
A47: 2013-10-26 | B47: Southwest | C47: Tyrone | D47: 335
A48: 2013-10-22 | B48: Southwest | C48: Chin | D48: 571
A49: 2013-10-25 | B49: Southwest | C49: Chin | D49: 136
A50: 2013-10-25 | B50: Northwest | C50: Gigi | D50: 201
A51: 2013-10-23 | B51: Northwest | C51: Chin | D51: 339
A52: 2013-10-25 | B52: Northwest | C52: Tyrone | D52: 203
A53: 2013-10-21 | B53: West | C53: Gigi | D53: 526
A54: 2013-10-25 | B54: West | C54: Chin | D54: 86
A55: 2013-10-24 | B55: Southwest | C55: Tyrone | D55: 388
A56: 2013-10-25 | B56: Northwest | C56: Chin | D56: 119
A57: 2013-10-21 | B57: West | C57: Gigi | D57: 296
A58: 2013-10-21 | B58: Northwest | C58: Chin | D58: 295
A59: 2013-10-21 | B59: Northwest | C59: Gigi | D59: 120
A60: 2013-10-21 | B60: West | C60: Gigi | D60: 647
A61: 2013-10-22 | B61: Northwest | C61: Tyrone | D61: 159
A62: 2013-10-23 | B62: Northwest | C62: Chin | D62: 217
A63: 2013-10-24 | B63: Southwest | C63: Tyrone | D63: 362
A64: 2013-10-26 | B64: Southwest | C64: Gigi | D64: 599
A65: 2013-10-25 | B65: West | C65: Tyrone | D65: 546
A66: 2013-10-25 | B66: Northwest | C66: Gigi | D66: 254
A67: 2013-10-20 | B67: West | C67: Tyrone | D67: 101
A68: 2013-10-26 | B68: Southwest | C68: Chin | D68: 150
A69: 2013-10-25 | B69: Southwest | C69: Gigi | D69: 204
A70: 2013-10-24 | B70: Southwest | C70: Tyrone | D70: 106
A71: 2013-10-21 | B71: West | C71: Tyrone | D71: 333
A72: 2013-10-24 | B72: Northwest | C72: Gigi | D72: 67
A73: 2013-10-20 | B73: Northwest | C73: Gigi | D73: 51
A74: 2013-10-21 | B74: Southwest | C74: Gigi | D74: 279
A75: 2013-10-24 | B75: Southwest | C75: Tyrone | D75: 123
A76: 2013-10-21 | B76: West | C76: Chin | D76: 519
A77: 2013-10-22 | B77: Northwest | C77: Chin | D77: 501
A78: 2013-10-26 | B78: West | C78: Gigi | D78: 235
A79: 2013-10-23 | B79: Southwest | C79: Tyrone | D79: 35
A80: 2013-10-23 | B80: West | C80: Gigi | D80: 319
A81: 2013-10-24 | B81: Northwest | C81: Chin | D81: 551
A82: 2013-10-26 | B82: Southwest | C82: Chin | D82: 188
A83: 2013-10-25 | B83: West | C83: Tyrone | D83: 129
A84: 2013-10-20 | B84: West | C84: Gigi | D84: 339
A85: 2013-10-21 | B85: Southwest | C85: Chin | D85: 485
A86: 2013-10-20 | B86: West | C86: Tyrone | D86: 29
A87: 2013-10-20 | B87: Southwest | C87: Tyrone | D87: 135
A88: 2013-10-26 | B88: Southwest | C88: Tyrone | D88: 584
A89: 2013-10-23 | B89: Northwest | C89: Tyrone | D89: 684
A90: 2013-10-23 | B90: West | C90: Gigi | D90: 528
A91: 2013-10-26 | B91: Southwest | C91: Tyrone | D91: 675
A92: 2013-10-23 | B92: West | C92: Gigi | D92: 119
A93: 2013-10-22 | B93: West | C93: Gigi | D93: 368
A94: 2013-10-24 | B94: Southwest | C94: Gigi | D94: 524
A95: 2013-10-24 | B95: Southwest | C95: Gigi | D95: 329
A96: 2013-10-26 | B96: West | C96: Gigi | D96: 146
A97: 2013-10-26 | B97: Northwest | C97: Tyrone | D97: 350
A98: 2013-10-23 | B98: Southwest | C98: Chin | D98: 387
A99: 2013-10-20 | B99: Southwest | C99: Gigi | D99: 244
A100: 2013-10-23 | B100: Southwest | C100: Gigi | D100: 388
A101: 2013-10-20 | B101: Southwest | C101: Tyrone | D101: 449
A102: 2013-10-22 | B102: West | C102: Tyrone | D102: 477
A103: 2013-10-23 | B103: Southwest | C103: Chin | D103: 457
A104: 2013-10-26 | B104: Southwest | C104: Tyrone | D104: 105
A105: 2013-10-22 | B105: West | C105: Tyrone | D105: 458
A106: 2013-10-26 | B106: Northwest | C106: Chin | D106: 110
A107: 2013-10-21 | B107: West | C107: Tyrone | D107: 32
A108: 2013-10-24 | B108: West | C108: Chin | D108: 681
A109: 2013-10-23 | B109: Northwest | C109: Gigi | D109: 320
A110: 2013-10-25 | B110: Northwest | C110: Chin | D110: 601
A111: 2013-10-25 | B111: Southwest | C111: Gigi | D111: 101
A112: 2013-10-23 | B112: Northwest | C112: Gigi | D112: 172
A113: 2013-10-20 | B113: West | C113: Chin | D113: 197
A114: 2013-10-22 | B114: West | C114: Chin | D114: 346
A115: 2013-10-26 | B115: West | C115: Chin | D115: 318
A116: 2013-10-21 | B116: West | C116: Gigi | D116: 245
A117: 2013-10-25 | B117: Southwest | C117: Chin | D117: 498
A118: 2013-10-26 | B118: Southwest | C118: Tyrone | D118: 272
A119: 2013-10-21 | B119: Southwest | C119: Chin | D119: 424
A120: 2013-10-26 | B120: Northwest | C120: Chin | D120: 122
A121: 2013-10-23 | B121: Southwest | C121: Tyrone | D121: 39
A122: 2013-10-21 | B122: Southwest | C122: Gigi | D122: 400
A123: 2013-10-26 | B123: West | C123: Chin | D123: 416
A124: 2013-10-20 | B124: Southwest | C124: Tyrone | D124: 397
A125: 2013-10-25 | B125: Northwest | C125: Gigi | D125: 671
A126: 2013-10-25 | B126: Southwest | C126: Gigi | D126: 148
A127: 2013-10-21 | B127: Northwest | C127: Tyrone | D127: 115
A128: 2013-10-25 | B128: Northwest | C128: Tyrone | D128: 639
A129: 2013-10-24 | B129: Southwest | C129: Tyrone | D129: 659
A130: 2013-10-22 | B130: West | C130: Tyrone | D130: 36
A131: 2013-10-21 | B131: Northwest | C131: Tyrone | D131: 102
A132: 2013-10-22 | B132: West | C132: Chin | D132: 413
A133: 2013-10-25 | B133: West | C133: Chin | D133: 166
A134: 2013-10-22 | B134: West | C134: Chin | D134: 97
A135: 2013-10-26 | B135: West | C135: Tyrone | D135: 127
A136: 2013-10-20 | B136: Northwest | C136: Gigi | D136: 60
A137: 2013-10-22 | B137: Southwest | C137: Gigi | D137: 496
A138: 2013-10-23 | B138: Northwest | C138: Gigi | D138: 204
A139: 2013-10-26 | B139: Northwest | C139: Gigi | D139: 489
A140: 2013-10-20 | B140: West | C140: Tyrone | D140: 266
A141: 2013-10-20 | B141: Northwest | C141: Chin | D141: 364
A142: 2013-10-20 | B142: Northwest | C142: Chin | D142: 579
A143: 2013-10-21 | B143: West | C143: Gigi | D143: 587
A144: 2013-10-26 | B144: West | C144: Gigi | D144: 543
A145: 2013-10-22 | B145: Northwest | C145: Chin | D145: 644
A146: 2013-10-20 | B146: West | C146: Gigi | D146: 564
A147: 2013-10-22 | B147: Southwest | C147: Gigi | D147: 149
A148: 2013-10-23 | B148: Southwest | C148: Chin | D148: 201
A149: 2013-10-25 | B149: West | C149: Chin | D149: 51
A150: 2013-10-23 | B150: West | C150: Tyrone | D150: 195
A151: 2013-10-26 | B151: Northwest | C151: Chin | D151: 660
A152: 2013-10-21 | B152: Northwest | C152: Gigi | D152: 523
A153: 2013-10-23 | B153: West | C153: Tyrone | D153: 649
A154: 2013-10-25 | B154: Southwest | C154: Tyrone | D154: 409
A155: 2013-10-20 | B155: Northwest | C155: Tyrone | D155: 556
A156: 2013-10-22 | B156: Northwest | C156: Chin | D156: 565
A157: 2013-10-20 | B157: Southwest | C157: Tyrone | D157: 357
A158: 2013-10-25 | B158: West | C158: Gigi | D158: 219
A159: 2013-10-25 | B159: Northwest | C159: Gigi | D159: 327
A160: 2013-10-20 | B160: Southwest | C160: Chin | D160: 666
A161: 2013-10-20 | B161: Northwest | C161: Tyrone | D161: 290
A162: 2013-10-24 | B162: Northwest | C162: Tyrone | D162: 64
A163: 2013-10-24 | B163: West | C163: Chin | D163: 373
A164: 2013-10-26 | B164: Northwest | C164: Gigi | D164: 249
A165: 2013-10-20 | B165: Northwest | C165: Tyrone | D165: 237
A166: 2013-10-22 | B166: West | C166: Chin | D166: 138
A167: 2013-10-26 | B167: West | C167: Chin | D167: 324
A168: 2013-10-22 | B168: Southwest | C168: Gigi | D168: 633
A169: 2013-10-26 | B169: Southwest | C169: Gigi | D169: 240
A170: 2013-10-20 | B170: Southwest | C170: Tyrone | D170: 615
A171: 2013-10-22 | B171: Southwest | C171: Tyrone | D171: 180
A172: 2013-10-25 | B172: West | C172: Chin | D172: 415
A173: 2013-10-22 | B173: West | C173: Tyrone | D173: 305
A174: 2013-10-25 | B174: Northwest | C174: Chin | D174: 657
A175: 2013-10-23 | B175: West | C175: Gigi | D175: 474
A176: 2013-10-22 | B176: West | C176: Gigi | D176: 611
A177: 2013-10-21 | B177: West | C177: Chin | D177: 682
A178: 2013-10-24 | B178: Northwest | C178: Chin | D178: 398
A179: 2013-10-23 | B179: Northwest | C179: Tyrone | D179: 74
A180: 2013-10-24 | B180: West | C180: Gigi | D180: 243
A181: 2013-10-25 | B181: West | C181: Chin | D181: 151
A182: 2013-10-25 | B182: Northwest | C182: Chin | D182: 174
A183: 2013-10-24 | B183: Northwest | C183: Chin | D183: 304
A184: 2013-10-20 | B184: West | C184: Tyrone | D184: 457
A185: 2013-10-20 | B185: Southwest | C185: Chin | D185: 315
A186: 2013-10-23 | B186: Northwest | C186: Tyrone | D186: 295
A187: 2013-10-22 | B187: Northwest | C187: Tyrone | D187: 534
A188: 2013-10-23 | B188: West | C188: Chin | D188: 598
A189: 2013-10-24 | B189: Southwest | C189: Gigi | D189: 14
A190: 2013-10-22 | B190: Southwest | C190: Chin | D190: 26
A191: 2013-10-23 | B191: West | C191: Gigi | D191: 108
A192: 2013-10-22 | B192: West | C192: Tyrone | D192: 114
A193: 2013-10-26 | B193: Northwest | C193: Chin | D193: 684
A194: 2013-10-25 | B194: West | C194: Gigi | D194: 258
A195: 2013-10-21 | B195: Northwest | C195: Tyrone | D195: 439
A196: 2013-10-26 | B196: Northwest | C196: Tyrone | D196: 583
A197: 2013-10-25 | B197: West | C197: Tyrone | D197: 664
A198: 2013-10-24 | B198: West | C198: Tyrone | D198: 339
A199: 2013-10-24 | B199: Northwest | C199: Chin | D199: 164
A200: 2013-10-22 | B200: Southwest | C200: Tyrone | D200: 671
A201: 2013-10-23 | B201: Southwest | C201: Gigi | D201: 241
A202: 2013-10-24 | B202: West | C202: Chin | D202: 257
A203: 2013-10-23 | B203: Northwest | C203: Chin | D203: 264
... 399 more rows

Sheet Calcs and Data Analysis
A1: Video Project 25: Excel 2013 Basics 07
A2: What Excel Does: Calculations and Data Analysis
A4: Calculation = a single answer in a cell | K4: Data Analysis = converting raw data into useful information
A5: Examples: | K5: Examples:
A6: Percentage grade | K6: Creating a Regional Sales Report with the SUMIFS function
A7: Net Income | K7: Creating a Regional Sales Report with a PivotTable
A8: Payroll deduction | K8: Sorting a column of assembly times to show the fastest times at the top of the column
A11: Name | B11: Quiz 01 | C11: Quiz 02 | D11: Quiz 03 | E11: Test 1 | F11: Test 2 | G11: Test 3 | H11: Total | I11: % Grade | K11: Date | L11: Region | M11: SalesRep | N11: Sales | P11: Date | Q11: Total
A12: Max | B12: 20 | C12: 20 | D12: 20 | E12: 100 | F12: 100 | G12: 100 | H12: =SUM(B12:G12) -> 360 | I12: =H12/H12 -> 1 | K12: 2013-10-21 | L12: Northwest | M12: Chin | N12: 154 | P12: 2013-10-20 | Q12: =SUMIFS($N$12:$N$33,$K$12:$K$33,P12) -> 4606
A13: Sioux | B13: 15 | C13: 9 | D13: 15 | E13: 87 | F13: 59 | G13: 98 | H13: =SUM(B13:G13) -> 283 | K13: 2013-10-21 | L13: Northwest | M13: Gigi | N13: 205 | P13: 2013-10-21 | Q13: =SUMIFS($N$12:$N$33,$K$12:$K$33,P13) -> 2508
A14: Phil | B14: 16 | C14: 8 | D14: 14 | E14: 92 | F14: 68 | G14: 92 | H14: =SUM(B14:G14) -> 290 | K14: 2013-10-21 | L14: Southwest | M14: Gigi | N14: 895 | P14: 2013-10-22 | Q14: 596
A15: Tom | B15: 12 | C15: 15 | D15: 18 | E15: 78 | F15: 67 | G15: 97 | H15: 287 | K15: 2013-10-20 | L15: West | M15: Gigi | N15: 620 | P15: 2013-10-23 | Q15: 0
A16: Chin | B16: 16 | C16: 16 | D16: 19 | E16: 65 | F16: 72 | G16: 88 | H16: 276 | K16: 2013-10-20 | L16: Northwest | M16: Gigi | N16: 484 | P16: 2013-10-24 | Q16: 3765
A17: Shelia | B17: 11 | C17: 13 | D17: 18 | E17: 74 | F17: 81 | G17: 87 | H17: 284 | K17: 2013-10-21 | L17: West | M17: Chin | N17: 1254 | P17: 2013-10-25 | Q17: 2648
A18: Mo | B18: 18 | C18: 19 | D18: 19 | E18: 89 | F18: 79 | G18: 75 | H18: 299 | K18: 2013-10-20 | L18: West | M18: Freddy | N18: 376
A19: Gigi | B19: 20 | C19: 8 | D19: 15 | E19: 92 | F19: 75 | G19: 92 | H19: 302 | K19: 2013-10-25 | L19: Southwest | M19: Chin | N19: 739
A20: Average | B20: =AVERAGE(B13:B19) -> 15.42857143 | C20: =AVERAGE(C13:C19) -> 12.57142857 | D20: =AVERAGE(D13:D19) -> 16.85714286 | E20: 82.42857143 | F20: 71.57142857 | G20: =AVERAGE(G13:G19) -> 89.85714286 | H20: =AVERAGE(H13:H19) -> 288.7142857 | K20: 2013-10-25 | L20: West | M20: Gigi | N20: 1201
K21: 2013-10-25 | L21: Northwest | M21: June | N21: 546
A22: Net Income Projections | B22: Jan | C22: Feb | D22: Mar | E22: Apr | F22: May | G22: Total | K22: 2013-10-20 | L22: Northwest | M22: Freddy | N22: 1141
A23: Revenue | B23: =B28 -> 5000 | C23: =B23*$B$29 -> 5250 | D23: =C23*$B$29 -> 5512.5 | E23: 5788.125 | F23: 6077.53125 | G23: =SUM(B23:F23) -> 27628.15625 | K23: 2013-10-24 | L23: Southwest | M23: Gigi | N23: 799
A24: Expenses | G24: =SUM(B24:F24) -> 0 | K24: 2013-10-20 | L24: Northwest | M24: Chin | N24: 725
A25: Net Income | B25: =B23-B24 -> 5000 | C25: =C23-C24 -> 5250 | D25: 5512.5 | E25: 5788.125 | F25: =F23-F24 -> 6077.53125 | G25: 27628.15625 | K25: 2013-10-24 | L25: Northwest | M25: Gigi | N25: 651
K26: 2013-10-24 | L26: West | M26: June | N26: 1235
A27: Assumptions (Formula Inputs) | K27: 2013-10-25 | L27: Northwest | M27: Chin | N27: 162
A28: Start Jan Rev | B28: 5000 | K28: 2013-10-24 | L28: Southwest | M28: Chin | N28: 684
A29: Rev Increase | B29: 1.05 | K29: 2013-10-20 | L29: West | M29: Chin | N29: 222
A30: Exp as a % of Rev | B30: 0.65 | K30: 2013-10-22 | L30: Northwest | M30: June | N30: 596
K31: 2013-10-20 | L31: West | M31: June | N31: 1038
A32: Name | B32: Gross | C32: Deduction | E32: Tax Rate | K32: 2013-10-24 | L32: Northwest | M32: June | N32: 127
A33: Jo | B33: 987 | E33: 0.0145 | K33: 2013-10-24 | L33: West | M33: June | N33: 269
A34: Mo | B34: 653.25
A35: Sioux | B35: 855.25
A36: Tyrone | B36: 1022.3 | K36: Name | L36: Assemby Time (mins) | M36: Shift
A37: Gigi | B37: 796 | K37: Jesse Barton | L37: 8.43 | M37: Shift 3
K38: Robin Ruiz | L38: 7.06 | M38: Shift 1
K39: Dean King | L39: 10.8 | M39: Shift 1
K40: Douglas Stevens | L40: 7.03 | M40: Shift 3
K41: Jean French | L41: 11.64 | M41: Shift 2
K42: Sherri Daniels | L42: 8.29 | M42: Shift 3
K43: Ernestine Watkins | L43: 11.92 | M43: Shift 1
K44: Clark Waters | L44: 5.57 | M44: Shift 3
K45: Otis Weaver | L45: 7.92 | M45: Shift 2
K46: Stanley Steele | L46: 11.4 | M46: Shift 3
K47: Evelyn Morgan | L47: 8.83 | M47: Shift 2
K48: Ernest Guerrero | L48: 11.94 | M48: Shift 1
K49: Geraldine Ramirez | L49: 9.6 | M49: Shift 3
K50: Joey Lyons | L50: 6.67 | M50: Shift 1
K51: Ivan Hamilton | L51: 11.76 | M51: Shift 2
K52: Jenny Dean | L52: 8.43 | M52: Shift 2
K53: Eloise Barber | L53: 5.82 | M53: Shift 3
K54: Bernard Ryan | L54: 7.38 | M54: Shift 3
K55: Hector Martinez | L55: 6.24 | M55: Shift 2
K56: Josh Lindsey | L56: 5.29 | M56: Shift 2
K57: Rita Fuller | L57: 10.33 | M57: Shift 1
K58: Lena Hubbard | L58: 5.99 | M58: Shift 1
K59: Cody Carlson | L59: 5.9 | M59: Shift 2
K60: Kent West | L60: 8.87 | M60: Shift 1
K61: Sadie Richardson | L61: 6.46 | M61: Shift 1

Sheet Calcs and Data Analysis (an)
A1: Video Project 25: Excel 2013 Basics 07
A2: What Excel Does: Calculations and Data Analysis
A4: Calculation = a single answer in a cell | E4: Data Analysis = converting raw data into useful information
A5: Examples: | E5: Examples:
A6: Percentage Grade | E6: Creating a Regional Sales Report with the SUMIFS function
A7: Net Income | E7: Creating a Regional Sales Report with a PivotTable
A8: Payroll Deduction | E8: Sorting a column of assembly times to show the fastest times at the top of the column
A11: Name | B11: Quiz 01 | C11: Quiz 02 | D11: Quiz 03 | E11: Test 1 | F11: Test 2 | G11: Test 3 | H11: Total | I11: % Grade | K11: Date | L11: Region | M11: SalesRep | N11: Sales | P11: Date | Q11: Total
A12: Max | B12: 20 | C12: 20 | D12: 20 | E12: 100 | F12: 100 | G12: 100 | H12: =SUM(B12:G12) -> 360 | I12: =H12/H12 -> 1 | K12: 2013-10-21 | L12: Northwest | M12: Chin | N12: 154 | P12: 2013-10-20 | Q12: =SUMIFS($N$12:$N$33,$K$12:$K$33,P12) -> 4606
A13: Sioux | B13: 15 | C13: 9 | D13: 15 | E13: 87 | F13: 59 | G13: 98 | H13: =SUM(B13:G13) -> 283 | I13: =H13/$H$12 -> 0.7861111111 | K13: 2013-10-21 | L13: Northwest | M13: Gigi | N13: 205 | P13: 2013-10-21 | Q13: =SUMIFS($N$12:$N$33,$K$12:$K$33,P13) -> 2508
A14: Phil | B14: 16 | C14: 8 | D14: 14 | E14: 92 | F14: 68 | G14: 92 | H14: =SUM(B14:G14) -> 290 | I14: =H14/$H$12 -> 0.8055555556 | K14: 2013-10-21 | L14: Southwest | M14: Gigi | N14: 895 | P14: 2013-10-22 | Q14: 596
A15: Tom | B15: 12 | C15: 15 | D15: 18 | E15: 78 | F15: 67 | G15: 97 | H15: 287 | I15: 0.7972222222 | K15: 2013-10-20 | L15: West | M15: Gigi | N15: 620 | P15: 2013-10-23 | Q15: 0
A16: Chin | B16: 16 | C16: 16 | D16: 19 | E16: 65 | F16: 72 | G16: 88 | H16: 276 | I16: 0.7666666667 | K16: 2013-10-20 | L16: Northwest | M16: Gigi | N16: 484 | P16: 2013-10-24 | Q16: 3765
A17: Shelia | B17: 11 | C17: 13 | D17: 18 | E17: 74 | F17: 81 | G17: 87 | H17: 284 | I17: 0.7888888889 | K17: 2013-10-21 | L17: West | M17: Chin | N17: 1254 | P17: 2013-10-25 | Q17: 2648
A18: Mo | B18: 18 | C18: 19 | D18: 19 | E18: 89 | F18: 79 | G18: 75 | H18: 299 | I18: 0.8305555556 | K18: 2013-10-20 | L18: West | M18: Freddy | N18: 376
A19: Gigi | B19: 20 | C19: 8 | D19: 15 | E19: 92 | F19: 75 | G19: 92 | H19: 302 | I19: 0.8388888889 | K19: 2013-10-25 | L19: Southwest | M19: Chin | N19: 739
A20: Average | B20: =AVERAGE(B13:B19) -> 15.42857143 | C20: =AVERAGE(C13:C19) -> 12.57142857 | D20: =AVERAGE(D13:D19) -> 16.85714286 | E20: 82.42857143 | F20: 71.57142857 | G20: =AVERAGE(G13:G19) -> 89.85714286 | H20: =AVERAGE(H13:H19) -> 288.7142857 | K20: 2013-10-25 | L20: West | M20: Gigi | N20: 1201 | P20: Row Labels | Q20: Sum of Sales
K21: 2013-10-25 | L21: Northwest | M21: June | N21: 546 | P21: 2013-10-20 | Q21: 4606
A22: Net Income Projections | B22: Jan | C22: Feb | D22: Mar | E22: Apr | F22: May | G22: Total | K22: 2013-10-20 | L22: Northwest | M22: Freddy | N22: 1141 | P22: 2013-10-21 | Q22: 2508
A23: Revenue | B23: =B28 -> 5000 | C23: =B23*$B$29 -> 5250 | D23: =C23*$B$29 -> 5512.5 | E23: 5788.125 | F23: 6077.53125 | G23: =SUM(B23:F23) -> 27628.15625 | K23: 2013-10-24 | L23: Southwest | M23: Gigi | N23: 799 | P23: 2013-10-22 | Q23: 596
A24: Expenses | B24: =B23*$B$30 -> 3250 | C24: =C23*$B$30 -> 3412.5 | D24: 3583.125 | E24: 3762.28125 | F24: 3950.395313 | G24: =SUM(B24:F24) -> 17958.30156 | K24: 2013-10-20 | L24: Northwest | M24: Chin | N24: 725 | P24: 2013-10-24 | Q24: 3765
A25: Net Income | B25: =B23-B24 -> 1750 | C25: =C23-C24 -> 1837.5 | D25: 1929.375 | E25: 2025.84375 | F25: =F23-F24 -> 2127.135937 | G25: 9669.854687 | K25: 2013-10-24 | L25: Northwest | M25: Gigi | N25: 651 | P25: 2013-10-25 | Q25: 2648
K26: 2013-10-24 | L26: West | M26: June | N26: 1235 | P26: Grand Total | Q26: 14123
A27: Assumptions (Formula Inputs) | K27: 2013-10-25 | L27: Northwest | M27: Chin | N27: 162
A28: Start Jan Rev | B28: 5000 | K28: 2013-10-24 | L28: Southwest | M28: Chin | N28: 684
A29: Rev Increase | B29: 1.05 | K29: 2013-10-20 | L29: West | M29: Chin | N29: 222
A30: Exp as a % of Rev | B30: 0.65 | K30: 2013-10-22 | L30: Northwest | M30: June | N30: 596
K31: 2013-10-20 | L31: West | M31: June | N31: 1038
A32: Name | B32: Gross | C32: Deduction | E32: Tax Rate | K32: 2013-10-24 | L32: Northwest | M32: June | N32: 127
A33: Jo | B33: 987 | C33: =B33*$E$33 -> 14.3115 | E33: 0.0145 | K33: 2013-10-24 | L33: West | M33: June | N33: 269
A34: Mo | B34: 653.25 | C34: =B34*$E$33 -> 9.472125
A35: Sioux | B35: 855.25 | C35: 12.401125
A36: Tyrone | B36: 1022.3 | C36: 14.82335 | K36: Name | L36: Assembly Time (mins) | M36: Shift
A37: Gigi | B37: 796 | C37: 11.542 | K37: Josh Lindsey | L37: 5.29 | M37: Shift 2
K38: Clark Waters | L38: 5.57 | M38: Shift 3
K39: Eloise Barber | L39: 5.82 | M39: Shift 3
K40: Cody Carlson | L40: 5.9 | M40: Shift 2
K41: Lena Hubbard | L41: 5.99 | M41: Shift 1
K42: Hector Martinez | L42: 6.24 | M42: Shift 2
K43: Sadie Richardson | L43: 6.46 | M43: Shift 1
K44: Joey Lyons | L44: 6.67 | M44: Shift 1
K45: Douglas Stevens | L45: 7.03 | M45: Shift 3
K46: Robin Ruiz | L46: 7.06 | M46: Shift 1
K47: Bernard Ryan | L47: 7.38 | M47: Shift 3
K48: Otis Weaver | L48: 7.92 | M48: Shift 2
K49: Sherri Daniels | L49: 8.29 | M49: Shift 3
K50: Jesse Barton | L50: 8.43 | M50: Shift 3
K51: Jenny Dean | L51: 8.43 | M51: Shift 2
K52: Evelyn Morgan | L52: 8.83 | M52: Shift 2
K53: Kent West | L53: 8.87 | M53: Shift 1
K54: Geraldine Ramirez | L54: 9.6 | M54: Shift 3
K55: Rita Fuller | L55: 10.33 | M55: Shift 1
K56: Dean King | L56: 10.8 | M56: Shift 1
K57: Stanley Steele | L57: 11.4 | M57: Shift 3
K58: Jean French | L58: 11.64 | M58: Shift 2
K59: Ivan Hamilton | L59: 11.76 | M59: Shift 2
K60: Ernestine Watkins | L60: 11.92 | M60: Shift 1
K61: Ernest Guerrero | L61: 11.94 | M61: Shift 1

Sheet Default Alignment
A1: Video Project 26: Excel 2013 Basics 08
A2: Default Data Alignment In Excel
E3: Calls | G3: Dates
B4: By default, words are aligned left | E4: 12 | G4: 2013-11-02
E5: 35 | G5: 11.2.2013
B6: By default, numbers are aligned right | E6: 16
D7: Total
B8: By default, TRUE/FALSEs are aligned center
E9: Fix For Numbers Stored as text:
B10: By default, errors are aligned center | E10: 1) Highlight Numbers
E11: 2) Data Ribbon Tab
E12: 3) Text To Columns
E13: 4) Finish
A15: Error Message | B15: Description of Error
B16: Formula errors:
B17: Divide by zero
B18: Formula is using cell reference that has been deleted, or other invalid cell reference
B19: Excel built-in function misspelled, Defined Name misspelled, or "text" (word data) in formula is not in double quotes.
B20: Not Available/ No Answer
B21: Invalid operand or argument type (argument in a function), or Array Formula was entered without Ctrl + Shift + Enter
B22: No Intersection
B23: Invalid numeric values in a formula or function, or an iterative function like IRR cannot find an answer, or the number is too big or small (number must be between -1*10^307 and 1*10^307)
B24: Other errors
A25: ####### | B25: Column width not wide enough to display data (values), or negative date or time
A26: Circular Cell Reference | B26: Cell reference in formula refers to the formulas result (itself). You see a dialog message about this error

Sheet Default Alignment (an)
A1: Video Project 26: Excel 2013 Basics 08
A2: Default Data Alignment In Excel
E3: Calls | G3: Dates
B4: By default, words are aligned left | E4: 12 | G4: 2013-11-02
A5: Excel | B5: Excel | E5: 35 | G5: 11.2.2013
A6: 43 | B6: By default, numbers are aligned right | E6: 16
B7: 43 | D7: Total | E7: =SUM(E4:E6) -> 63
B8: By default, TRUE/FALSEs are aligned center
B9: FALSE | E9: Fix For Numbers Stored as text:
B10: By default, errors are aligned center | E10: 1) Highlight Numbers
B11: =1/0 ->  | E11: 2) Data Ribbon Tab
E12: 3) Text To Columns
E13: 4) Finish
A15: Error Message | B15: Description of Error
B16: Formula errors:
B17: Divide by zero
B18: Formula is using cell reference that has been deleted, or other invalid cell reference
B19: Excel built-in function misspelled, Defined Name misspelled, or "text" (word data) in formula is not in double quotes.
B20: Not Available/ No Answer
B21: Invalid operand or argument type (argument in a function), or Array Formula was entered without Ctrl + Shift + Enter
B22: No Intersection
B23: Invalid numeric values in a formula or function, or an iterative function like IRR cannot find an answer, or the number is too big or small (number must be between -1*10^307 and 1*10^307)
B24: Other errors
A25: ####### | B25: Column width not wide enough to display data (values), or negative date or time
A26: Circular Cell Reference | B26: Cell reference in formula refers to the formulas result (itself). You see a dialog message about this error

Sheet ExcelTables
A1: Video Project 27: Excel 2013 Basics 09
A2: Keeping Data in Excel: Proper Data Set and Excel Table
A4: Proper Data Set: | H4: Stock Table: Proper Data Set Example:
A5: 1 | B5: Field names in first row
B6: Field names say what sort of data can go in the column | H6: Ticker | I6: Name | J6: Beta | K6: P/E | L6: EPS | M6: Price
A7: 2 | B7: No empty field names | H7: MSFT | I7: Microsoft | J7: 0.8 | K7: 13.32 | L7: 2.67 | M7: 35.73
B8: It would be impossible to make a PivotTable without field names | H8: GE | I8: General Electric | J8: 1.22 | K8: 19.62 | L8: 1.33 | M8: 26.09
A9: 3 | B9: Records in subsequent rows | H9: GOOG | I9: Google | J9: 0.97 | K9: 27.61 | L9: 36.76 | M9: 1015
B10: Record = row = collection of bits of raw data = set of related data | H10: KO | I10: Coca Cola | J10: 0.26 | K10: 20.53 | L10: 1.93 | M10: 39.61
A11: 4 | B11: Try not to have empty cells in the records
B12: Empty cells sometimes cause trouble, but usually there is a fix
A13: 5 | B13: Must have empty cells all around your data set (or have Excel row headers (numbers) or column headers (letters) at the left or above the data set)
A15: In order to create PivotTables, Sort, Filter, we need a proper data set.
A16: and later when we study Access (database)
A18: Proper Data Set Example:
A19: Sales table
H21: Excel Table Feature:
A22: Date | B22: Region | C22: SalesRep | D22: Sales | H22: What is does:
A23: 2013-10-21 | B23: Northwest | C23: Chin | D23: 154 | H23: 1) Dynamic Ranges
A24: 2013-10-21 | B24: Northwest | C24: Gigi | D24: 205 | H24: Allows you to add new records to data set and all formulas and charts and PivotTables will automatically update (you have to refresh a PivotTable).
A25: 2013-10-21 | B25: Southwest | C25: Gigi | D25: 895 | H25: 2) Adds formatting
A26: 2013-10-20 | B26: West | C26: Gigi | D26: 620 | H26: 3) Adds Sorting and Filter buttons to each field (at the top of each column)
A27: 2013-10-20 | B27: Northwest | C27: Gigi | D27: 484
A28: 2013-10-21 | B28: West | C28: Chin | D28: 1254 | H28: Convert Proper Data Set to Excel Table ==>> Ctrl + T
A29: 2013-10-20 | B29: West | C29: Freddy | D29: 376 | H29: Name Table in Table Tools Ribbon Design Tab, Properties group, Table Name Textbox
A30: 2013-10-25 | B30: Southwest | C30: Chin | D30: 739
A31: 2013-10-25 | B31: West | C31: Gigi | D31: 1201 | H31: Medical table
A32: 2013-10-25 | B32: Northwest | C32: June | D32: 546
A33: 2013-10-20 | B33: Northwest | C33: Freddy | D33: 1141
A34: 2013-10-24 | B34: Southwest | C34: Gigi | D34: 799 | H34: Date | I34: Systolic | J34: Diastolic
A35: 2013-10-20 | B35: Northwest | C35: Chin | D35: 725 | H35: 2013-10-24 | I35: 122 | J35: 78
A36: 2013-10-24 | B36: Northwest | C36: Gigi | D36: 651 | H36: 2013-10-25 | I36: 132 | J36: 80
A37: 2013-10-24 | B37: West | C37: June | D37: 1235 | H37: 2013-10-26 | I37: 119 | J37: 77
A38: 2013-10-25 | B38: Northwest | C38: Chin | D38: 162 | H38: 2013-10-27 | I38: 145 | J38: 91
A39: 2013-10-24 | B39: Southwest | C39: Chin | D39: 684
A40: 2013-10-20 | B40: West | C40: Chin | D40: 222
A41: 2013-10-22 | B41: Northwest | C41: June | D41: 596 | L41: Max | M41: Min
A42: 2013-10-20 | B42: West | C42: June | D42: 1038
A43: 2013-10-24 | B43: Northwest | C43: June | D43: 127
A44: 2013-10-24 | B44: West | C44: June | D44: 269 | L44: MAX function finds biggest number.
L45: MIN function finds smallest number.

Sheet ExcelTables (an)
A1: Video Project 27: Excel 2013 Basics 09
A2: Keeping Data in Excel: Proper Data Set and Excel Table
A4: Proper Data Set: | H4: Stock Table: Proper Data Set Example:
A5: 1 | B5: Field names in first row
B6: Field names say what sort of data can go in the column | H6: Ticker | I6: Name | J6: Beta | K6: P/E | L6: EPS | M6: Price
A7: 2 | B7: No empty field names | H7: MSFT | I7: Microsoft | J7: 0.8 | K7: 13.32 | L7: 2.67 | M7: 35.73
B8: It would be impossible to make a PivotTable without field names | H8: GE | I8: General Electric | J8: 1.22 | K8: 19.62 | L8: 1.33 | M8: 26.09
A9: 3 | B9: Records in subsequent rows | H9: GOOG | I9: Google | J9: 0.97 | K9: 27.61 | L9: 36.76 | M9: 1015
B10: Record = row = collection of bits of raw data = set of related data | H10: KO | I10: Coca Cola | J10: 0.26 | K10: 20.53 | L10: 1.93 | M10: 39.61
A11: 4 | B11: Try not to have empty cells in the records
B12: Empty cells sometimes cause trouble, but usually there is a fix
A13: 5 | B13: Must have empty cells all around your data set (or have Excel row headers (numbers) or column headers (letters) at the left or above the data set)
A15: In order to create PivotTables, Sort, Filter, we need a proper data set.
A16: and later when we study Access (database)
A18: Proper Data Set Example:
A19: Sales table
H21: Excel Table Feature:
A22: Date | B22: Region | C22: SalesRep | D22: Sales | H22: What is does:
A23: 2013-10-21 | B23: West | C23: Chin | D23: 1254 | H23: 1) Dynamic Ranges
A24: 2013-10-24 | B24: West | C24: June | D24: 1235 | H24: Allows you to add new records to data set and all formulas and charts and PivotTables will automatically update (you have to refresh a PivotTable).
A25: 2013-10-25 | B25: West | C25: Gigi | D25: 1201 | H25: 2) Adds formatting
A26: 2013-10-20 | B26: Northwest | C26: Freddy | D26: 1141 | H26: 3) Adds Sorting and Filter buttons to each field (at the top of each column)
A27: 2013-10-20 | B27: West | C27: June | D27: 1038
A28: 2013-10-21 | B28: Southwest | C28: Gigi | D28: 895 | H28: Convert Proper Data Set to Excel Table ==>> Ctrl + T
A29: 2013-10-24 | B29: Southwest | C29: Gigi | D29: 799 | H29: Name Table in Table Tools Ribbon Design Tab, Properties group, Table Name Textbox
A30: 2013-10-25 | B30: Southwest | C30: Chin | D30: 739
A31: 2013-10-20 | B31: Northwest | C31: Chin | D31: 725 | H31: Medical table
A32: 2013-10-24 | B32: Southwest | C32: Chin | D32: 684
A33: 2013-10-24 | B33: Northwest | C33: Gigi | D33: 651
A34: 2013-10-20 | B34: West | C34: Gigi | D34: 620 | H34: Date | I34: Systolic | J34: Diastolic
A35: 2013-10-22 | B35: Northwest | C35: June | D35: 596 | H35: 2013-10-24 | I35: 122 | J35: 78
A36: 2013-10-25 | B36: Northwest | C36: June | D36: 546 | H36: 2013-10-25 | I36: 132 | J36: 80
A37: 2013-10-20 | B37: Northwest | C37: Gigi | D37: 484 | H37: 2013-10-26 | I37: 119 | J37: 77
A38: 2013-10-20 | B38: West | C38: Freddy | D38: 376 | H38: 2013-10-27 | I38: 145 | J38: 91
A39: 2013-10-24 | B39: West | C39: June | D39: 269 | H39: 2013-10-28 | I39: 149 | J39: 93
A40: 2013-10-20 | B40: West | C40: Chin | D40: 222 | H40: 2013-10-29 | I40: 131 | J40: 87
A41: 2013-10-21 | B41: Northwest | C41: Gigi | D41: 205 | H41: 2013-10-30 | I41: 125 | J41: 84 | L41: Max | M41: Min
A42: 2013-10-25 | B42: Northwest | C42: Chin | D42: 162 | L42: =MAX(AnswerBloodPressureT[Systolic]) -> 149 | M42: =MIN(J35:J41) -> 77
A43: 2013-10-21 | B43: Northwest | C43: Chin | D43: 154
A44: 2013-10-24 | B44: Northwest | C44: June | D44: 127

Sheet PT 1 (an)
A3: Row Labels | B3: Sum of Sales
A4: June | B4: 3811
A5: Chin | B5: 3940
A6: Freddy | B6: 1517
A7: Gigi | B7: 4855
A8: Grand Total | B8: 14123

Sheet HW ==>>

Sheet HW(1)
A1: In cell F4 create a formula that adds the total calls. In cell G8:G32 create a formula that adds the total calls for each Sales Rep.
A3: SalesRep | B3: Calls | D3: Total
A4: Alexis Gill | B4: 31
A5: Elias Ramsey | B5: 42
A6: Myron Daniel | B6: 37
A7: Kathleen Marshall | B7: 18 | D7: SalesRep | E7: Total
A8: Jermaine Sherman | B8: 43 | D8: Fred Mullins
A9: Freda Gregory | B9: 104 | D9: Janet Murphy
A10: Aaron Adkins | B10: 25 | D10: Faith Malone
A11: Faith Malone | B11: 54 | D11: Aaron Adkins
A12: Kim Wolfe | B12: 38 | D12: Natasha Schneider
A13: Freda Gregory | B13: 43 | D13: Kathleen Marshall
A14: Tony Pierce | B14: 26 | D14: Lynn Osborne
A15: Barry Scott | B15: 46 | D15: Kim Wolfe
A16: Freda Gregory | B16: 40 | D16: Barry Scott
A17: Freda Gregory | B17: 65 | D17: Myron Daniel
A18: Sheila Smith | B18: 36 | D18: Alfred Fuller
A19: Fred Mullins | B19: 16 | D19: Mildred Leonard
A20: Kurt Hill | B20: 21 | D20: Elias Ramsey
A21: Brad Dawson | B21: 31 | D21: Jermaine Sherman
A22: Fred Mullins | B22: 51 | D22: Sean Hunter
A23: Jermaine Sherman | B23: 40 | D23: Brad Dawson
A24: Lynn Osborne | B24: 65 | D24: Cecil Austin
A25: Janet Murphy | B25: 95 | D25: Tony Pierce
A26: Cecil Austin | B26: 51 | D26: Freda Gregory
A27: Myron Daniel | B27: 41 | D27: Alexis Gill
A28: Natasha Schneider | B28: 57 | D28: Wilbert Moreno
A29: Elias Ramsey | B29: 55 | D29: Kurt Hill
A30: Janet Murphy | B30: 31 | D30: John Lucas
A31: Lynn Osborne | B31: 67 | D31: Velma Bennett
A32: Alfred Fuller | B32: 47 | D32: Sheila Smith
A33: Brad Dawson | B33: 27
A34: Alexis Gill | B34: 45
A35: Faith Malone | B35: 26
A36: Cecil Austin | B36: 14
A37: Janet Murphy | B37: 33
A38: John Lucas | B38: 57
A39: Kim Wolfe | B39: 104
A40: Kim Wolfe | B40: 29
A41: Freda Gregory | B41: 49
A42: Alexis Gill | B42: 43
A43: Kim Wolfe | B43: 44
A44: John Lucas | B44: 22
A45: Alfred Fuller | B45: 11
A46: Aaron Adkins | B46: 32
A47: Wilbert Moreno | B47: 40
A48: Alexis Gill | B48: 60
A49: Wilbert Moreno | B49: 47
A50: Myron Daniel | B50: 58
A51: Sean Hunter | B51: 30
A52: Lynn Osborne | B52: 81
A53: Sean Hunter | B53: 49
A54: Alexis Gill | B54: 58
A55: Kurt Hill | B55: 111
A56: Barry Scott | B56: 43
A57: Sheila Smith | B57: 28
A58: Brad Dawson | B58: 40
A59: Kim Wolfe | B59: 98
A60: Lynn Osborne | B60: 58
A61: Wilbert Moreno | B61: 39
A62: Alfred Fuller | B62: 45
A63: Aaron Adkins | B63: 31
A64: Brad Dawson | B64: 24
A65: Fred Mullins | B65: 56
A66: Alexis Gill | B66: 64
A67: Tony Pierce | B67: 46
A68: Natasha Schneider | B68: 50
A69: Myron Daniel | B69: 12
A70: Lynn Osborne | B70: 25
A71: Aaron Adkins | B71: 96
A72: Velma Bennett | B72: 36
A73: Mildred Leonard | B73: 23
A74: Wilbert Moreno | B74: 26
A75: Tony Pierce | B75: 14
A76: Freda Gregory | B76: 51
A77: Sean Hunter | B77: 54
A78: Freda Gregory | B78: 97
A79: Barry Scott | B79: 59
A80: Kathleen Marshall | B80: 95
A81: Freda Gregory | B81: 94
A82: Lynn Osborne | B82: 35
A83: Alfred Fuller | B83: 27
A84: Elias Ramsey | B84: 37
A85: Sheila Smith | B85: 57
A86: Sean Hunter | B86: 59
A87: Elias Ramsey | B87: 60
A88: Janet Murphy | B88: 70
A89: Jermaine Sherman | B89: 39
A90: Kim Wolfe | B90: 23
A91: Wilbert Moreno | B91: 42
A92: Natasha Schneider | B92: 35
A93: Mildred Leonard | B93: 56
A94: Natasha Schneider | B94: 81
A95: Lynn Osborne | B95: 50
A96: Faith Malone | B96: 40
A97: Velma Bennett | B97: 37
A98: Janet Murphy | B98: 65
A99: Alfred Fuller | B99: 57
A100: Fred Mullins | B100: 120
A101: Faith Malone | B101: 50
A102: Alfred Fuller | B102: 32
A103: Sean Hunter | B103: 115
A104: Lynn Osborne | B104: 17
A105: Lynn Osborne | B105: 20
A106: Faith Malone | B106: 33
A107: Janet Murphy | B107: 35
A108: Brad Dawson | B108: 58
A109: John Lucas | B109: 46
A110: Mildred Leonard | B110: 77
A111: Mildred Leonard | B111: 45
A112: Natasha Schneider | B112: 45
A113: Janet Murphy | B113: 26
A114: Freda Gregory | B114: 42
A115: Mildred Leonard | B115: 40
A116: Aaron Adkins | B116: 22
A117: Freda Gregory | B117: 21
A118: Barry Scott | B118: 37
A119: Velma Bennett | B119: 103
A120: Fred Mullins | B120: 53
A121: Faith Malone | B121: 29
A122: Alexis Gill | B122: 84
A123: Myron Daniel | B123: 100
A124: Sean Hunter | B124: 38
A125: Barry Scott | B125: 43
A126: Barry Scott | B126: 49
A127: Fred Mullins | B127: 35
A128: Natasha Schneider | B128: 13
A129: Janet Murphy | B129: 86
A130: Jermaine Sherman | B130: 23
A131: Alexis Gill | B131: 39
A132: Fred Mullins | B132: 58
A133: Kathleen Marshall | B133: 76
A134: Myron Daniel | B134: 54
A135: Natasha Schneider | B135: 42
A136: Natasha Schneider | B136: 24
A137: Sean Hunter | B137: 31
A138: Lynn Osborne | B138: 58
A139: John Lucas | B139: 93
A140: Jermaine Sherman | B140: 43
A141: Mildred Leonard | B141: 38
A142: Mildred Leonard | B142: 83
A143: Myron Daniel | B143: 20
A144: Wilbert Moreno | B144: 74
A145: Mildred Leonard | B145: 28
A146: Natasha Schneider | B146: 60
A147: Lynn Osborne | B147: 39
A148: Tony Pierce | B148: 37
A149: Janet Murphy | B149: 104
A150: Myron Daniel | B150: 86
A151: Jermaine Sherman | B151: 53
A152: Fred Mullins | B152: 17
A153: Kathleen Marshall | B153: 57
A154: Aaron Adkins | B154: 52
A155: Faith Malone | B155: 40
A156: Kim Wolfe | B156: 56
A157: Janet Murphy | B157: 49
A158: Aaron Adkins | B158: 62
A159: Myron Daniel | B159: 29
A160: Elias Ramsey | B160: 114
A161: Velma Bennett | B161: 45
A162: Tony Pierce | B162: 101
A163: Wilbert Moreno | B163: 23
A164: Jermaine Sherman | B164: 86
A165: Myron Daniel | B165: 102
A166: Freda Gregory | B166: 24
A167: Natasha Schneider | B167: 22
A168: Alfred Fuller | B168: 24
A169: Natasha Schneider | B169: 43
A170: Elias Ramsey | B170: 28
A171: Wilbert Moreno | B171: 49
A172: Kim Wolfe | B172: 34
A173: Janet Murphy | B173: 22
A174: Janet Murphy | B174: 38
A175: Lynn Osborne | B175: 57
A176: Barry Scott | B176: 73
A177: Kim Wolfe | B177: 30
A178: Sean Hunter | B178: 26
A179: Natasha Schneider | B179: 50
A180: Cecil Austin | B180: 49
A181: Lynn Osborne | B181: 71
A182: Freda Gregory | B182: 50
A183: Freda Gregory | B183: 41
A184: Myron Daniel | B184: 44
A185: Aaron Adkins | B185: 88
A186: Faith Malone | B186: 37
A187: Kathleen Marshall | B187: 30
A188: Janet Murphy | B188: 49
A189: Alexis Gill | B189: 52
A190: Kathleen Marshall | B190: 47
A191: Cecil Austin | B191: 33
A192: Barry Scott | B192: 48
A193: Cecil Austin | B193: 89
A194: Alfred Fuller | B194: 36
A195: Jermaine Sherman | B195: 29
A196: Brad Dawson | B196: 35
A197: Aaron Adkins | B197: 39
A198: Tony Pierce | B198: 41
A199: Kim Wolfe | B199: 42
A200: Lynn Osborne | B200: 60
A201: John Lucas | B201: 92
... 384 more rows

Sheet HW(1an)
A1: In cell F4 create a formula that adds the total calls. In cell G8:G32 create a formula that adds the total calls for each Sales Rep.
A3: SalesRep | B3: Calls | D3: Total
A4: Alexis Gill | B4: 31 | D4: =SUM(B4:B585) -> 29751
A5: Elias Ramsey | B5: 42
A6: Myron Daniel | B6: 37
A7: Kathleen Marshall | B7: 18 | D7: SalesRep | E7: Total
A8: Jermaine Sherman | B8: 43 | D8: Fred Mullins | E8: =SUMIFS($B$4:$B$585,$A$4:$A$585,D8) -> 1172
A9: Freda Gregory | B9: 104 | D9: Janet Murphy | E9: =SUMIFS($B$4:$B$585,$A$4:$A$585,D9) -> 1509
A10: Aaron Adkins | B10: 25 | D10: Faith Malone | E10: 1315
A11: Faith Malone | B11: 54 | D11: Aaron Adkins | E11: 1361
A12: Kim Wolfe | B12: 38 | D12: Natasha Schneider | E12: 1569
A13: Freda Gregory | B13: 43 | D13: Kathleen Marshall | E13: 1222
A14: Tony Pierce | B14: 26 | D14: Lynn Osborne | E14: 1847
A15: Barry Scott | B15: 46 | D15: Kim Wolfe | E15: 1531
A16: Freda Gregory | B16: 40 | D16: Barry Scott | E16: 1168
A17: Freda Gregory | B17: 65 | D17: Myron Daniel | E17: 1409
A18: Sheila Smith | B18: 36 | D18: Alfred Fuller | E18: 1032
A19: Fred Mullins | B19: 16 | D19: Mildred Leonard | E19: 1228
A20: Kurt Hill | B20: 21 | D20: Elias Ramsey | E20: 1193
A21: Brad Dawson | B21: 31 | D21: Jermaine Sherman | E21: 1296
A22: Fred Mullins | B22: 51 | D22: Sean Hunter | E22: 1084
A23: Jermaine Sherman | B23: 40 | D23: Brad Dawson | E23: 845
A24: Lynn Osborne | B24: 65 | D24: Cecil Austin | E24: 969
A25: Janet Murphy | B25: 95 | D25: Tony Pierce | E25: 994
A26: Cecil Austin | B26: 51 | D26: Freda Gregory | E26: 1510
A27: Myron Daniel | B27: 41 | D27: Alexis Gill | E27: 1308
A28: Natasha Schneider | B28: 57 | D28: Wilbert Moreno | E28: 1152
A29: Elias Ramsey | B29: 55 | D29: Kurt Hill | E29: 551
A30: Janet Murphy | B30: 31 | D30: John Lucas | E30: 809
A31: Lynn Osborne | B31: 67 | D31: Velma Bennett | E31: 756
A32: Alfred Fuller | B32: 47 | D32: Sheila Smith | E32: 921
A33: Brad Dawson | B33: 27
A34: Alexis Gill | B34: 45
A35: Faith Malone | B35: 26
A36: Cecil Austin | B36: 14
A37: Janet Murphy | B37: 33
A38: John Lucas | B38: 57
A39: Kim Wolfe | B39: 104
A40: Kim Wolfe | B40: 29
A41: Freda Gregory | B41: 49
A42: Alexis Gill | B42: 43
A43: Kim Wolfe | B43: 44
A44: John Lucas | B44: 22
A45: Alfred Fuller | B45: 11
A46: Aaron Adkins | B46: 32
A47: Wilbert Moreno | B47: 40
A48: Alexis Gill | B48: 60
A49: Wilbert Moreno | B49: 47
A50: Myron Daniel | B50: 58
A51: Sean Hunter | B51: 30
A52: Lynn Osborne | B52: 81
A53: Sean Hunter | B53: 49
A54: Alexis Gill | B54: 58
A55: Kurt Hill | B55: 111
A56: Barry Scott | B56: 43
A57: Sheila Smith | B57: 28
A58: Brad Dawson | B58: 40
A59: Kim Wolfe | B59: 98
A60: Lynn Osborne | B60: 58
A61: Wilbert Moreno | B61: 39
A62: Alfred Fuller | B62: 45
A63: Aaron Adkins | B63: 31
A64: Brad Dawson | B64: 24
A65: Fred Mullins | B65: 56
A66: Alexis Gill | B66: 64
A67: Tony Pierce | B67: 46
A68: Natasha Schneider | B68: 50
A69: Myron Daniel | B69: 12
A70: Lynn Osborne | B70: 25
A71: Aaron Adkins | B71: 96
A72: Velma Bennett | B72: 36
A73: Mildred Leonard | B73: 23
A74: Wilbert Moreno | B74: 26
A75: Tony Pierce | B75: 14
A76: Freda Gregory | B76: 51
A77: Sean Hunter | B77: 54
A78: Freda Gregory | B78: 97
A79: Barry Scott | B79: 59
A80: Kathleen Marshall | B80: 95
A81: Freda Gregory | B81: 94
A82: Lynn Osborne | B82: 35
A83: Alfred Fuller | B83: 27
A84: Elias Ramsey | B84: 37
A85: Sheila Smith | B85: 57
A86: Sean Hunter | B86: 59
A87: Elias Ramsey | B87: 60
A88: Janet Murphy | B88: 70
A89: Jermaine Sherman | B89: 39
A90: Kim Wolfe | B90: 23
A91: Wilbert Moreno | B91: 42
A92: Natasha Schneider | B92: 35
A93: Mildred Leonard | B93: 56
A94: Natasha Schneider | B94: 81
A95: Lynn Osborne | B95: 50
A96: Faith Malone | B96: 40
A97: Velma Bennett | B97: 37
A98: Janet Murphy | B98: 65
A99: Alfred Fuller | B99: 57
A100: Fred Mullins | B100: 120
A101: Faith Malone | B101: 50
A102: Alfred Fuller | B102: 32
A103: Sean Hunter | B103: 115
A104: Lynn Osborne | B104: 17
A105: Lynn Osborne | B105: 20
A106: Faith Malone | B106: 33
A107: Janet Murphy | B107: 35
A108: Brad Dawson | B108: 58
A109: John Lucas | B109: 46
A110: Mildred Leonard | B110: 77
A111: Mildred Leonard | B111: 45
A112: Natasha Schneider | B112: 45
A113: Janet Murphy | B113: 26
A114: Freda Gregory | B114: 42
A115: Mildred Leonard | B115: 40
A116: Aaron Adkins | B116: 22
A117: Freda Gregory | B117: 21
A118: Barry Scott | B118: 37
A119: Velma Bennett | B119: 103
A120: Fred Mullins | B120: 53
A121: Faith Malone | B121: 29
A122: Alexis Gill | B122: 84
A123: Myron Daniel | B123: 100
A124: Sean Hunter | B124: 38
A125: Barry Scott | B125: 43
A126: Barry Scott | B126: 49
A127: Fred Mullins | B127: 35
A128: Natasha Schneider | B128: 13
A129: Janet Murphy | B129: 86
A130: Jermaine Sherman | B130: 23
A131: Alexis Gill | B131: 39
A132: Fred Mullins | B132: 58
A133: Kathleen Marshall | B133: 76
A134: Myron Daniel | B134: 54
A135: Natasha Schneider | B135: 42
A136: Natasha Schneider | B136: 24
A137: Sean Hunter | B137: 31
A138: Lynn Osborne | B138: 58
A139: John Lucas | B139: 93
A140: Jermaine Sherman | B140: 43
A141: Mildred Leonard | B141: 38
A142: Mildred Leonard | B142: 83
A143: Myron Daniel | B143: 20
A144: Wilbert Moreno | B144: 74
A145: Mildred Leonard | B145: 28
A146: Natasha Schneider | B146: 60
A147: Lynn Osborne | B147: 39
A148: Tony Pierce | B148: 37
A149: Janet Murphy | B149: 104
A150: Myron Daniel | B150: 86
A151: Jermaine Sherman | B151: 53
A152: Fred Mullins | B152: 17
A153: Kathleen Marshall | B153: 57
A154: Aaron Adkins | B154: 52
A155: Faith Malone | B155: 40
A156: Kim Wolfe | B156: 56
A157: Janet Murphy | B157: 49
A158: Aaron Adkins | B158: 62
A159: Myron Daniel | B159: 29
A160: Elias Ramsey | B160: 114
A161: Velma Bennett | B161: 45
A162: Tony Pierce | B162: 101
A163: Wilbert Moreno | B163: 23
A164: Jermaine Sherman | B164: 86
A165: Myron Daniel | B165: 102
A166: Freda Gregory | B166: 24
A167: Natasha Schneider | B167: 22
A168: Alfred Fuller | B168: 24
A169: Natasha Schneider | B169: 43
A170: Elias Ramsey | B170: 28
A171: Wilbert Moreno | B171: 49
A172: Kim Wolfe | B172: 34
A173: Janet Murphy | B173: 22
A174: Janet Murphy | B174: 38
A175: Lynn Osborne | B175: 57
A176: Barry Scott | B176: 73
A177: Kim Wolfe | B177: 30
A178: Sean Hunter | B178: 26
A179: Natasha Schneider | B179: 50
A180: Cecil Austin | B180: 49
A181: Lynn Osborne | B181: 71
A182: Freda Gregory | B182: 50
A183: Freda Gregory | B183: 41
A184: Myron Daniel | B184: 44
A185: Aaron Adkins | B185: 88
A186: Faith Malone | B186: 37
A187: Kathleen Marshall | B187: 30
A188: Janet Murphy | B188: 49
A189: Alexis Gill | B189: 52
A190: Kathleen Marshall | B190: 47
A191: Cecil Austin | B191: 33
A192: Barry Scott | B192: 48
A193: Cecil Austin | B193: 89
A194: Alfred Fuller | B194: 36
A195: Jermaine Sherman | B195: 29
A196: Brad Dawson | B196: 35
A197: Aaron Adkins | B197: 39
A198: Tony Pierce | B198: 41
A199: Kim Wolfe | B199: 42
A200: Lynn Osborne | B200: 60
A201: John Lucas | B201: 92
... 384 more rows

Sheet HW(2)
A1: Create a PivotTable as a new sheet that adds the sales for each Sales Rep.
A3: Date | B3: Region | C3: SalesRep | D3: Sales
A4: 2013-10-21 | B4: West | C4: Jermaine Sherman | D4: 519
A5: 2013-10-25 | B5: West | C5: Elias Ramsey | D5: 651
A6: 2013-10-26 | B6: West | C6: Barry Scott | D6: 618
A7: 2013-10-23 | B7: Northwest | C7: Alfred Fuller | D7: 335
A8: 2013-10-20 | B8: Northwest | C8: Alfred Fuller | D8: 640
A9: 2013-10-23 | B9: Southwest | C9: Kim Wolfe | D9: 586
A10: 2013-10-21 | B10: West | C10: Myron Daniel | D10: 301
A11: 2013-10-25 | B11: Southwest | C11: Elias Ramsey | D11: 359
A12: 2013-10-20 | B12: West | C12: Kim Wolfe | D12: 658
A13: 2013-10-21 | B13: Southwest | C13: Elias Ramsey | D13: 213
A14: 2013-10-25 | B14: Southwest | C14: Lynn Osborne | D14: 500
A15: 2013-10-22 | B15: Northwest | C15: Kim Wolfe | D15: 604
A16: 2013-10-23 | B16: West | C16: Alexis Gill | D16: 340
A17: 2013-10-21 | B17: Northwest | C17: Lynn Osborne | D17: 117
A18: 2013-10-25 | B18: Southwest | C18: Mildred Leonard | D18: 234
A19: 2013-10-20 | B19: West | C19: Mildred Leonard | D19: 225
A20: 2013-10-25 | B20: Southwest | C20: Velma Bennett | D20: 302
A21: 2013-10-24 | B21: Northwest | C21: Fred Mullins | D21: 223
A22: 2013-10-22 | B22: West | C22: Kim Wolfe | D22: 401
A23: 2013-10-24 | B23: West | C23: Barry Scott | D23: 405
A24: 2013-10-21 | B24: Northwest | C24: Myron Daniel | D24: 493
A25: 2013-10-21 | B25: Southwest | C25: Lynn Osborne | D25: 214
A26: 2013-10-22 | B26: Southwest | C26: Alfred Fuller | D26: 366
A27: 2013-10-22 | B27: Northwest | C27: Elias Ramsey | D27: 191
A28: 2013-10-25 | B28: West | C28: Mildred Leonard | D28: 628
A29: 2013-10-26 | B29: West | C29: Alfred Fuller | D29: 144
A30: 2013-10-26 | B30: Southwest | C30: Mildred Leonard | D30: 335
A31: 2013-10-22 | B31: Southwest | C31: Myron Daniel | D31: 571
A32: 2013-10-25 | B32: Southwest | C32: Alfred Fuller | D32: 136
A33: 2013-10-25 | B33: Northwest | C33: Lynn Osborne | D33: 201
A34: 2013-10-23 | B34: Northwest | C34: Brad Dawson | D34: 339
A35: 2013-10-25 | B35: Northwest | C35: Kim Wolfe | D35: 203
A36: 2013-10-21 | B36: West | C36: Alexis Gill | D36: 526
A37: 2013-10-25 | B37: West | C37: Myron Daniel | D37: 86
A38: 2013-10-24 | B38: Southwest | C38: Natasha Schneider | D38: 388
A39: 2013-10-25 | B39: Northwest | C39: Kathleen Marshall | D39: 119
A40: 2013-10-21 | B40: West | C40: Kathleen Marshall | D40: 296
A41: 2013-10-21 | B41: Northwest | C41: Barry Scott | D41: 295
A42: 2013-10-21 | B42: Northwest | C42: Brad Dawson | D42: 120
A43: 2013-10-21 | B43: West | C43: Elias Ramsey | D43: 647
A44: 2013-10-22 | B44: Northwest | C44: Wilbert Moreno | D44: 159
A45: 2013-10-23 | B45: Northwest | C45: Alexis Gill | D45: 217
A46: 2013-10-24 | B46: Southwest | C46: Kim Wolfe | D46: 362
A47: 2013-10-26 | B47: Southwest | C47: Velma Bennett | D47: 599
A48: 2013-10-25 | B48: West | C48: Jermaine Sherman | D48: 546
A49: 2013-10-25 | B49: Northwest | C49: Lynn Osborne | D49: 254
A50: 2013-10-20 | B50: West | C50: Elias Ramsey | D50: 101
A51: 2013-10-26 | B51: Southwest | C51: Lynn Osborne | D51: 150
A52: 2013-10-25 | B52: Southwest | C52: Myron Daniel | D52: 204
A53: 2013-10-24 | B53: Southwest | C53: Brad Dawson | D53: 106
A54: 2013-10-21 | B54: West | C54: Myron Daniel | D54: 333
A55: 2013-10-24 | B55: Northwest | C55: Myron Daniel | D55: 67
A56: 2013-10-20 | B56: Northwest | C56: Velma Bennett | D56: 51
A57: 2013-10-21 | B57: Southwest | C57: Lynn Osborne | D57: 279
A58: 2013-10-24 | B58: Southwest | C58: Tony Pierce | D58: 123
A59: 2013-10-21 | B59: West | C59: Alfred Fuller | D59: 519
A60: 2013-10-22 | B60: Northwest | C60: Mildred Leonard | D60: 501
A61: 2013-10-26 | B61: West | C61: Kathleen Marshall | D61: 235
A62: 2013-10-23 | B62: Southwest | C62: Barry Scott | D62: 35
A63: 2013-10-23 | B63: West | C63: Alfred Fuller | D63: 319
A64: 2013-10-24 | B64: Northwest | C64: Barry Scott | D64: 551
A65: 2013-10-26 | B65: Southwest | C65: Natasha Schneider | D65: 188
A66: 2013-10-25 | B66: West | C66: Kathleen Marshall | D66: 129
A67: 2013-10-20 | B67: West | C67: Brad Dawson | D67: 339
A68: 2013-10-21 | B68: Southwest | C68: Kathleen Marshall | D68: 485
A69: 2013-10-20 | B69: West | C69: Mildred Leonard | D69: 29
A70: 2013-10-20 | B70: Southwest | C70: Kim Wolfe | D70: 135
A71: 2013-10-26 | B71: Southwest | C71: Jermaine Sherman | D71: 584
A72: 2013-10-23 | B72: Northwest | C72: Lynn Osborne | D72: 684
A73: 2013-10-23 | B73: West | C73: Alfred Fuller | D73: 528
A74: 2013-10-26 | B74: Southwest | C74: Lynn Osborne | D74: 675
A75: 2013-10-23 | B75: West | C75: Brad Dawson | D75: 119
A76: 2013-10-22 | B76: West | C76: Kim Wolfe | D76: 368
A77: 2013-10-24 | B77: Southwest | C77: Freda Gregory | D77: 524
A78: 2013-10-24 | B78: Southwest | C78: Lynn Osborne | D78: 329
A79: 2013-10-26 | B79: West | C79: Sean Hunter | D79: 146
A80: 2013-10-26 | B80: Northwest | C80: Alfred Fuller | D80: 350
A81: 2013-10-23 | B81: Southwest | C81: Natasha Schneider | D81: 387
A82: 2013-10-20 | B82: Southwest | C82: Faith Malone | D82: 244
A83: 2013-10-23 | B83: Southwest | C83: Kathleen Marshall | D83: 388
A84: 2013-10-20 | B84: Southwest | C84: Natasha Schneider | D84: 449
A85: 2013-10-22 | B85: West | C85: Natasha Schneider | D85: 477
A86: 2013-10-23 | B86: Southwest | C86: Sheila Smith | D86: 457
A87: 2013-10-26 | B87: Southwest | C87: Barry Scott | D87: 105
A88: 2013-10-22 | B88: West | C88: Sean Hunter | D88: 458
A89: 2013-10-26 | B89: Northwest | C89: Elias Ramsey | D89: 110
A90: 2013-10-21 | B90: West | C90: Natasha Schneider | D90: 32
A91: 2013-10-24 | B91: West | C91: Cecil Austin | D91: 681
A92: 2013-10-23 | B92: Northwest | C92: Barry Scott | D92: 320
A93: 2013-10-25 | B93: Northwest | C93: Freda Gregory | D93: 601
A94: 2013-10-25 | B94: Southwest | C94: Mildred Leonard | D94: 101
A95: 2013-10-23 | B95: Northwest | C95: Sheila Smith | D95: 172
A96: 2013-10-20 | B96: West | C96: Brad Dawson | D96: 197
A97: 2013-10-22 | B97: West | C97: Alfred Fuller | D97: 346
A98: 2013-10-26 | B98: West | C98: John Lucas | D98: 318
A99: 2013-10-21 | B99: West | C99: John Lucas | D99: 245
A100: 2013-10-25 | B100: Southwest | C100: Kathleen Marshall | D100: 498
A101: 2013-10-26 | B101: Southwest | C101: Lynn Osborne | D101: 272
A102: 2013-10-21 | B102: Southwest | C102: Kathleen Marshall | D102: 424
A103: 2013-10-26 | B103: Northwest | C103: Lynn Osborne | D103: 122
A104: 2013-10-23 | B104: Southwest | C104: Lynn Osborne | D104: 39
A105: 2013-10-21 | B105: Southwest | C105: Jermaine Sherman | D105: 400
A106: 2013-10-26 | B106: West | C106: Alfred Fuller | D106: 416
A107: 2013-10-20 | B107: Southwest | C107: Velma Bennett | D107: 397
A108: 2013-10-25 | B108: Northwest | C108: Myron Daniel | D108: 671
A109: 2013-10-25 | B109: Southwest | C109: Alfred Fuller | D109: 148
A110: 2013-10-21 | B110: Northwest | C110: Fred Mullins | D110: 115
A111: 2013-10-25 | B111: Northwest | C111: Aaron Adkins | D111: 639
A112: 2013-10-24 | B112: Southwest | C112: Kathleen Marshall | D112: 659
A113: 2013-10-22 | B113: West | C113: Barry Scott | D113: 36
A114: 2013-10-21 | B114: Northwest | C114: Fred Mullins | D114: 102
A115: 2013-10-22 | B115: West | C115: Mildred Leonard | D115: 413
A116: 2013-10-25 | B116: West | C116: Natasha Schneider | D116: 166
A117: 2013-10-22 | B117: West | C117: Kim Wolfe | D117: 97
A118: 2013-10-26 | B118: West | C118: Sean Hunter | D118: 127
A119: 2013-10-20 | B119: Northwest | C119: Janet Murphy | D119: 60
A120: 2013-10-22 | B120: Southwest | C120: Mildred Leonard | D120: 496
A121: 2013-10-23 | B121: Northwest | C121: Sean Hunter | D121: 204
A122: 2013-10-26 | B122: Northwest | C122: Alfred Fuller | D122: 489
A123: 2013-10-20 | B123: West | C123: Faith Malone | D123: 266
A124: 2013-10-20 | B124: Northwest | C124: Kathleen Marshall | D124: 364
A125: 2013-10-20 | B125: Northwest | C125: Barry Scott | D125: 579
A126: 2013-10-21 | B126: West | C126: Faith Malone | D126: 587
A127: 2013-10-26 | B127: West | C127: Janet Murphy | D127: 543
A128: 2013-10-22 | B128: Northwest | C128: Mildred Leonard | D128: 644
A129: 2013-10-20 | B129: West | C129: Alfred Fuller | D129: 564
A130: 2013-10-22 | B130: Southwest | C130: Faith Malone | D130: 149
A131: 2013-10-23 | B131: Southwest | C131: Barry Scott | D131: 201
A132: 2013-10-25 | B132: West | C132: Janet Murphy | D132: 51
A133: 2013-10-23 | B133: West | C133: Myron Daniel | D133: 195
A134: 2013-10-26 | B134: Northwest | C134: Kim Wolfe | D134: 660
A135: 2013-10-21 | B135: Northwest | C135: Myron Daniel | D135: 523
A136: 2013-10-23 | B136: West | C136: Kathleen Marshall | D136: 649
A137: 2013-10-25 | B137: Southwest | C137: Elias Ramsey | D137: 409
A138: 2013-10-20 | B138: Northwest | C138: Velma Bennett | D138: 556
A139: 2013-10-22 | B139: Northwest | C139: Kim Wolfe | D139: 565
A140: 2013-10-20 | B140: Southwest | C140: Elias Ramsey | D140: 357
A141: 2013-10-25 | B141: West | C141: Alexis Gill | D141: 219
A142: 2013-10-25 | B142: Northwest | C142: Freda Gregory | D142: 327
A143: 2013-10-20 | B143: Southwest | C143: Velma Bennett | D143: 666
A144: 2013-10-20 | B144: Northwest | C144: Freda Gregory | D144: 290
A145: 2013-10-24 | B145: Northwest | C145: Elias Ramsey | D145: 64
A146: 2013-10-24 | B146: West | C146: Natasha Schneider | D146: 373
A147: 2013-10-26 | B147: Northwest | C147: Brad Dawson | D147: 249
A148: 2013-10-20 | B148: Northwest | C148: Kurt Hill | D148: 237
A149: 2013-10-22 | B149: West | C149: Natasha Schneider | D149: 138
A150: 2013-10-26 | B150: West | C150: Faith Malone | D150: 324
A151: 2013-10-22 | B151: Southwest | C151: Kathleen Marshall | D151: 633
A152: 2013-10-26 | B152: Southwest | C152: Lynn Osborne | D152: 240
A153: 2013-10-20 | B153: Southwest | C153: Brad Dawson | D153: 615
A154: 2013-10-22 | B154: Southwest | C154: Myron Daniel | D154: 180
A155: 2013-10-25 | B155: West | C155: Tony Pierce | D155: 415
A156: 2013-10-22 | B156: West | C156: Fred Mullins | D156: 305
A157: 2013-10-25 | B157: Northwest | C157: Kathleen Marshall | D157: 657
A158: 2013-10-23 | B158: West | C158: Kathleen Marshall | D158: 474
A159: 2013-10-22 | B159: West | C159: Natasha Schneider | D159: 611
A160: 2013-10-21 | B160: West | C160: Kurt Hill | D160: 682
A161: 2013-10-24 | B161: Northwest | C161: Fred Mullins | D161: 398
A162: 2013-10-23 | B162: Northwest | C162: Natasha Schneider | D162: 74
A163: 2013-10-24 | B163: West | C163: Lynn Osborne | D163: 243
A164: 2013-10-25 | B164: West | C164: Barry Scott | D164: 151
A165: 2013-10-25 | B165: Northwest | C165: Kathleen Marshall | D165: 174
A166: 2013-10-24 | B166: Northwest | C166: Freda Gregory | D166: 304
A167: 2013-10-20 | B167: West | C167: Wilbert Moreno | D167: 457
A168: 2013-10-20 | B168: Southwest | C168: Alfred Fuller | D168: 315
A169: 2013-10-23 | B169: Northwest | C169: Kim Wolfe | D169: 295
A170: 2013-10-22 | B170: Northwest | C170: Mildred Leonard | D170: 534
A171: 2013-10-23 | B171: West | C171: Jermaine Sherman | D171: 598
A172: 2013-10-24 | B172: Southwest | C172: Lynn Osborne | D172: 14
A173: 2013-10-22 | B173: Southwest | C173: Kathleen Marshall | D173: 26
A174: 2013-10-23 | B174: West | C174: Aaron Adkins | D174: 108
A175: 2013-10-22 | B175: West | C175: Janet Murphy | D175: 114
A176: 2013-10-26 | B176: Northwest | C176: Sheila Smith | D176: 684
A177: 2013-10-25 | B177: West | C177: Kurt Hill | D177: 258
A178: 2013-10-21 | B178: Northwest | C178: John Lucas | D178: 439
A179: 2013-10-26 | B179: Northwest | C179: Alfred Fuller | D179: 583
A180: 2013-10-25 | B180: West | C180: Lynn Osborne | D180: 664
A181: 2013-10-24 | B181: West | C181: Elias Ramsey | D181: 339
A182: 2013-10-24 | B182: Northwest | C182: Freda Gregory | D182: 164
A183: 2013-10-22 | B183: Southwest | C183: Elias Ramsey | D183: 671
A184: 2013-10-23 | B184: Southwest | C184: Mildred Leonard | D184: 241
A185: 2013-10-24 | B185: West | C185: Mildred Leonard | D185: 257
A186: 2013-10-23 | B186: Northwest | C186: Kurt Hill | D186: 264
A187: 2013-10-26 | B187: West | C187: Mildred Leonard | D187: 471
A188: 2013-10-21 | B188: Northwest | C188: Tony Pierce | D188: 40
A189: 2013-10-22 | B189: West | C189: Faith Malone | D189: 594
A190: 2013-10-21 | B190: West | C190: Kim Wolfe | D190: 605
A191: 2013-10-24 | B191: West | C191: Fred Mullins | D191: 409
A192: 2013-10-21 | B192: Northwest | C192: Tony Pierce | D192: 250
A193: 2013-10-22 | B193: Southwest | C193: Tony Pierce | D193: 481
A194: 2013-10-25 | B194: West | C194: Sean Hunter | D194: 529
A195: 2013-10-24 | B195: Southwest | C195: Wilbert Moreno | D195: 56
A196: 2013-10-23 | B196: West | C196: Alfred Fuller | D196: 82
A197: 2013-10-26 | B197: West | C197: Lynn Osborne | D197: 575
A198: 2013-10-22 | B198: West | C198: Kathleen Marshall | D198: 665
A199: 2013-10-25 | B199: West | C199: Kathleen Marshall | D199: 490
A200: 2013-10-23 | B200: Southwest | C200: Mildred Leonard | D200: 630
A201: 2013-10-25 | B201: Southwest | C201: Elias Ramsey | D201: 352
... 384 more rows

Sheet PT-HW-2-Answer
A3: Row Labels | B3: Sum of Sales
A4: Jermaine Sherman | B4: 6027
A5: Elias Ramsey | B5: 15181
A6: Barry Scott | B6: 13915
A7: Alfred Fuller | B7: 14779
A8: Kim Wolfe | B8: 15449
A9: Myron Daniel | B9: 14079
A10: Lynn Osborne | B10: 17520
A11: Alexis Gill | B11: 4860
A12: Mildred Leonard | B12: 15973
A13: Velma Bennett | B13: 4485
A14: Fred Mullins | B14: 2485
A15: Brad Dawson | B15: 4368
A16: Natasha Schneider | B16: 12691
A17: Kathleen Marshall | B17: 16838
A18: Wilbert Moreno | B18: 3017
A19: Tony Pierce | B19: 6024
A20: Freda Gregory | B20: 6436
A21: Sean Hunter | B21: 5527
A22: Faith Malone | B22: 4662
A23: Sheila Smith | B23: 1941
A24: Cecil Austin | B24: 2939
A25: John Lucas | B25: 2287
A26: Aaron Adkins | B26: 4047
A27: Janet Murphy | B27: 3204
A28: Kurt Hill | B28: 4284
A29: Grand Total | B29: 203018

Sheet HW(3)
A1: In the range C5:C29 calculate the deduction for each person (deduction = Gross * Tax Rate).
A4: Name | B4: Gross | C4: Deduction | E4: Tax Rate
A5: Fred Mullins | B5: 1490 | E5: 0.0145
A6: Janet Murphy | B6: 1196
A7: Faith Malone | B7: 796
A8: Aaron Adkins | B8: 1473
A9: Natasha Schneider | B9: 1162
A10: Kathleen Marshall | B10: 1179
A11: Lynn Osborne | B11: 706
A12: Kim Wolfe | B12: 1024
A13: Barry Scott | B13: 1026
A14: Myron Daniel | B14: 731
A15: Alfred Fuller | B15: 1356
A16: Mildred Leonard | B16: 1202
A17: Elias Ramsey | B17: 1227
A18: Jermaine Sherman | B18: 1106
A19: Sean Hunter | B19: 1258
A20: Brad Dawson | B20: 732
A21: Cecil Austin | B21: 1379
A22: Tony Pierce | B22: 1245
A23: Freda Gregory | B23: 1347
A24: Alexis Gill | B24: 1096
A25: Wilbert Moreno | B25: 792
A26: Kurt Hill | B26: 924
A27: John Lucas | B27: 923
A28: Velma Bennett | B28: 1489
A29: Sheila Smith | B29: 1253

Sheet HW(3an)
A1: In the range C5:C29 calculate the deduction for each person (deduction = Gross * Tax Rate).
A4: Name | B4: Gross | C4: Deduction | E4: Tax Rate
A5: Fred Mullins | B5: 1490 | C5: =B5*$E$5 -> 233.93 | E5: 0.157
A6: Janet Murphy | B6: 1196 | C6: =B6*$E$5 -> 187.772
A7: Faith Malone | B7: 796 | C7: 124.972
A8: Aaron Adkins | B8: 1473 | C8: 231.261
A9: Natasha Schneider | B9: 1162 | C9: 182.434
A10: Kathleen Marshall | B10: 1179 | C10: 185.103
A11: Lynn Osborne | B11: 706 | C11: 110.842
A12: Kim Wolfe | B12: 1024 | C12: 160.768
A13: Barry Scott | B13: 1026 | C13: 161.082
A14: Myron Daniel | B14: 731 | C14: 114.767
A15: Alfred Fuller | B15: 1356 | C15: 212.892
A16: Mildred Leonard | B16: 1202 | C16: 188.714
A17: Elias Ramsey | B17: 1227 | C17: 192.639
A18: Jermaine Sherman | B18: 1106 | C18: 173.642
A19: Sean Hunter | B19: 1258 | C19: 197.506
A20: Brad Dawson | B20: 732 | C20: 114.924
A21: Cecil Austin | B21: 1379 | C21: 216.503
A22: Tony Pierce | B22: 1245 | C22: 195.465
A23: Freda Gregory | B23: 1347 | C23: 211.479
A24: Alexis Gill | B24: 1096 | C24: 172.072
A25: Wilbert Moreno | B25: 792 | C25: 124.344
A26: Kurt Hill | B26: 924 | C26: 145.068
A27: John Lucas | B27: 923 | C27: 144.911
A28: Velma Bennett | B28: 1489 | C28: 233.773
A29: Sheila Smith | B29: 1253 | C29: 196.721

Sheet HW(4)
A1: In Table 1, sort the Assembly Time (mins) field so that the smallest numbers appear at the top of the column. Then, in Table 2, sort the Number Of Practice Laps field so that the biggest numbers appear on top.
A3: Table 1: | G3: Table 2:
A5: Name | B5: Assemby Time (mins) | C5: Shift | G5: Racer | H5: Number Of Practice Laps
A6: Jesse Barton | B6: 8.43 | C6: Shift 3 | G6: Isaac | H6: 9
A7: Robin Ruiz | B7: 7.06 | C7: Shift 1 | G7: Caden | H7: 25
A8: Dean King | B8: 10.8 | C8: Shift 1 | G8: Ella | H8: 32
A9: Douglas Stevens | B9: 7.03 | C9: Shift 3 | G9: Halle | H9: 21
A10: Jean French | B10: 11.64 | C10: Shift 2 | G10: Logan | H10: 18
A11: Sherri Daniels | B11: 8.29 | C11: Shift 3 | G11: Zaine | H11: 29
A12: Ernestine Watkins | B12: 11.92 | C12: Shift 1 | G12: Magic | H12: 5
A13: Clark Waters | B13: 5.57 | C13: Shift 3 | G13: Rob | H13: 15
A14: Otis Weaver | B14: 7.92 | C14: Shift 2 | G14: Walt | H14: 9
A15: Stanley Steele | B15: 11.4 | C15: Shift 3
A16: Evelyn Morgan | B16: 8.83 | C16: Shift 2
A17: Ernest Guerrero | B17: 11.94 | C17: Shift 1
A18: Geraldine Ramirez | B18: 9.6 | C18: Shift 3
A19: Joey Lyons | B19: 6.67 | C19: Shift 1
A20: Ivan Hamilton | B20: 11.76 | C20: Shift 2
A21: Jenny Dean | B21: 8.43 | C21: Shift 2
A22: Eloise Barber | B22: 5.82 | C22: Shift 3
A23: Bernard Ryan | B23: 7.38 | C23: Shift 3
A24: Hector Martinez | B24: 6.24 | C24: Shift 2
A25: Josh Lindsey | B25: 5.29 | C25: Shift 2
A26: Rita Fuller | B26: 10.33 | C26: Shift 1
A27: Lena Hubbard | B27: 5.99 | C27: Shift 1
A28: Cody Carlson | B28: 5.9 | C28: Shift 2
A29: Kent West | B29: 8.87 | C29: Shift 1
A30: Sadie Richardson | B30: 6.46 | C30: Shift 1

Sheet HW(4an)
A1: In Table 1, sort the Assembly Time (mins) field so that the smallest numbers appear at the top of the column. Then, in Table 2, sort the Number Of Practice Laps field so that the biggest numbers appear on top.
A3: Table 1: | G3: Table 2:
A5: Name | B5: Assemby Time (mins) | C5: Shift | G5: Racer | H5: Number Of Practice Laps
A6: Josh Lindsey | B6: 5.29 | C6: Shift 2 | G6: Ella | H6: 32
A7: Clark Waters | B7: 5.57 | C7: Shift 3 | G7: Zaine | H7: 29
A8: Eloise Barber | B8: 5.82 | C8: Shift 3 | G8: Caden | H8: 25
A9: Cody Carlson | B9: 5.9 | C9: Shift 2 | G9: Halle | H9: 21
A10: Lena Hubbard | B10: 5.99 | C10: Shift 1 | G10: Logan | H10: 18
A11: Hector Martinez | B11: 6.24 | C11: Shift 2 | G11: Rob | H11: 15
A12: Sadie Richardson | B12: 6.46 | C12: Shift 1 | G12: Isaac | H12: 9
A13: Joey Lyons | B13: 6.67 | C13: Shift 1 | G13: Walt | H13: 9
A14: Douglas Stevens | B14: 7.03 | C14: Shift 3 | G14: Magic | H14: 5
A15: Robin Ruiz | B15: 7.06 | C15: Shift 1
A16: Bernard Ryan | B16: 7.38 | C16: Shift 3
A17: Otis Weaver | B17: 7.92 | C17: Shift 2
A18: Sherri Daniels | B18: 8.29 | C18: Shift 3
A19: Jesse Barton | B19: 8.43 | C19: Shift 3
A20: Jenny Dean | B20: 8.43 | C20: Shift 2
A21: Evelyn Morgan | B21: 8.83 | C21: Shift 2
A22: Kent West | B22: 8.87 | C22: Shift 1
A23: Geraldine Ramirez | B23: 9.6 | C23: Shift 3
A24: Rita Fuller | B24: 10.33 | C24: Shift 1
A25: Dean King | B25: 10.8 | C25: Shift 1
A26: Stanley Steele | B26: 11.4 | C26: Shift 3
A27: Jean French | B27: 11.64 | C27: Shift 2
A28: Ivan Hamilton | B28: 11.76 | C28: Shift 2
A29: Ernestine Watkins | B29: 11.92 | C29: Shift 1
A30: Ernest Guerrero | B30: 11.94 | C30: Shift 1

Sheet HW(5)
A1: Convert the Proper Data Set for classes and grades below to an Excel Table.
A2: Give the Excel Table a smart name.
A3: In cell D9, use the built-in AVERAGE function to calculate the GPA.
A4: Then make a column chart that shows the class name on the horizontal axis and column heights as grades.
A5: Finally, add a few records to see if the dynamic range aspect of the Excel Table feature is working.
A8: Class | B8: Grade | D8: GPA (Average)
A9: Busn 101 | B9: 2.8 | E9: <<== use AVERAGE function here.
A10: Busn 135 | B10: 2.7
A11: Busn 125 | B11: 3.7
A12: Busn 125 | B12: 4
A13: ENGL 101 | B13: 3.1

Sheet HW(5an)
A1: Convert the Proper Data Set for classes and grades below to an Excel Table.
A2: Give the Excel Table a smart name.
A3: In cell D9, use the built-in AVERAGE function to calculate the GPA.
A4: Then make a column chart that shows the class name on the horizontal axis and column heights as grades.
A5: Then, add a few records to see if the dynamic range aspect of the Excel Table feature is working.
A6: What happens to the chart if you sort the Grade field?
A8: Class | B8: Grade | D8: GPA (Average)
A9: Busn 135 | B9: 2.7 | D9: =AVERAGE(AnswerGradeTable[Grade]) -> 3.314285714 | E9: <<== use AVERAGE function here.
A10: Busn 101 | B10: 2.8
A11: Busn 216 | B11: 2.9
A12: ENGL 101 | B12: 3.1
A13: Busn 125 | B13: 3.7
A14: Busn 125 | B14: 4
A15: Busn 214 | B15: 4
